Cogmind - Beta 9.3 @@@ ROGUE MODE // 2020.01.18 @ 13:51:58 // Winter2019/RPGLIKE Player: badjay Result: Destroyed by Combat Programmer with EMDS Performance ------------- Evolutions (7) 3500 Regions Visited (31) 6200 Robots Destroyed (682) 3410 Value Destroyed (30183) 30183 Prototype IDs (94) 1880 Alien Tech Used (3) 600 Bonus (18943) 18943 TOTAL SCORE: 64716 Bonus ------- Triggered High Security 1000 High Alert Combat Kills 7071 Follower Combat Kills 3085 Network Hubs Disabled 600 Met Data Miner 300 Built Enhanced Grunts 300 Met R17 at Cetus 500 Found Hidden Lab 3000 Used Core Reset Matrix 3000 Hacked Protovariant 500 Pursued by Intercept 1000 Friendly Fire -1413 Cogmind --------- Core Integrity 0/600 Matter 214/300 Energy 15/360 System Corruption 17% Temperature Cool (0) Movement Flying (120) Ox1 Location -3/Testing Parts ------- > --- POWER (2) -------- Cooled Deuterium Engine Light Neutrino Core > --- PROPULSION (2) --- Q-thruster Q-thruster > --- UTILITY (13) ----- Long-range Terrain Scanner Experimental Melee Analysis Suite Experimental Target Analyzer Advanced Core Analyzer Advanced Armor Integrity Analyzer Advanced Reaction Control System AEGIS Remote Shield Experimental Hacking Suite Experimental Hacking Suite Experimental System Shield Quantum Router Improved System Restoration Module > --- WEAPON (5) ------- Kinetic Spear Force Lance Force Lance Plasma Lance Enhanced Force Lance > --- INVENTORY (4) ---- Experimental Energy Well (1000) Nanoactuators Advanced Actuator Array Core Expander Peak State ------------ > --- POWER ------------ Cooled Deuterium Engine Light Neutrino Core > --- PROPULSION ------- Q-thruster Q-thruster > --- UTILITY ---------- Long-range Terrain Scanner Experimental Melee Analysis Suite Experimental Target Analyzer Advanced Core Analyzer Advanced Armor Integrity Analyzer Advanced Reaction Control System Experimental Phase Shifter AEGIS Remote Shield Experimental Hacking Suite Experimental Hacking Suite Experimental System Shield Quantum Router Improved System Restoration Module > --- WEAPON ----------- Kinetic Spear Force Lance Force Lance Plasma Lance Enhanced Force Lance > --- INVENTORY -------- Experimental Energy Well Nanoactuators Advanced Actuator Array Core Expander [Rating: 174] Favorites ----------- Power Cooled Ion Engine Engine Cooled Ion Engine Power Core Light Neutrino Core Reactor Cold Fusion Reactor Propulsion Cooled VTOL Module Flight Unit Cooled VTOL Module Utility Improved Melee Analysis Suite Device Microactuators Storage Experimental Energy Well Processor Improved Melee Analysis Suite Hackware Improved System Shield Weapon Lance Energy Gun Improved EM Shotgun Ballistic Gun Light Assault Rifle Impact Weapon Powered Hammer Slashing Weapon Greatsword Piercing Weapon Lance Special Melee Weapon Improved Datajack Build | -11 -10 -10 -9 -9 -8 -7 -7 -7 -7 -7 -7 -6 -6 -6 -6 -6 -5 -5 -5 -5 -5 -5 -5 -5 -4 -4 -4 -4 -4 -3 -3 ------- Run | Scr Mat Min Mat Sto Mat Fac Was Fac Low Low Zio Pro Fac Low Low Dat Pro Fac Was Fac Ext Cet Arc Hub Fac Was Fac Arm Lab Res Tes Slots Evolved 17 | . 1 1 5 2 2 3 . . . . . 1 . . . . . 1 . . . . . . . 1 . . . . . Power 1 | . . . 1 . . . . . . . . . . . . . . . . . . . . . . . . . . . . Propulsion 1 | . . 1 . . . . . . . . . . . . . . . . . . . . . . . . . . . . . Utility 12 | . . . 3 1 2 3 . . . . . 1 . . . . . 1 . . . . . . . 1 . . . . . Weapon 3 | . 1 . 1 1 . . . . . . . . . . . . . . . . . . . . . . . . . . . Parts Attached 265 | . 4 2 17 8 10 33 . 18 1 . 3 3 20 3 1 . 3 23 . 6 3 2 . 3 5 4 9 13 8 30 33 Power 24 | . 1 . 4 . . 1 . 2 . . . . 5 . . . . 3 . 1 . . . . . . . . . 7 . Engine 14 | . 1 . 4 . . 1 . 2 . . . . 5 . . . . 1 . . . . . . . . . . . . . Core 6 | . . . . . . . . . . . . . . . . . . 1 . 1 . . . . . . . . . 4 . Reactor 4 | . . . . . . . . . . . . . . . . . . 1 . . . . . . . . . . . 3 . Propulsion 16 | . 1 2 3 2 . 1 . 1 . . . . 4 . . . . . . . . . . . . . . 2 . . . Treads . | . . . . . . . . . . . . . . . . . . . . . . . . . . . . . . . . Leg . | . . . . . . . . . . . . . . . . . . . . . . . . . . . . . . . . Wheel . | . . . . . . . . . . . . . . . . . . . . . . . . . . . . . . . . Hover . | . . . . . . . . . . . . . . . . . . . . . . . . . . . . . . . . Flight 16 | . 1 2 3 2 . 1 . 1 . . . . 4 . . . . . . . . . . . . . . 2 . . . Utility 163 | . . . 4 1 6 13 . 9 1 . 2 3 7 3 1 . 1 17 . 4 3 2 . 1 5 4 7 7 8 22 32 Device 110 | . . . . . . 2 . 5 1 . 2 3 5 3 1 . . 12 . 1 2 2 . 1 5 4 5 4 5 20 27 Storage 1 | . . . . . . . . . . . . . . . . . . . . . . . . . . . . . 1 . . Processor 34 | . . . 4 1 5 8 . 3 . . . . 2 . . . . 2 . 1 1 . . . . . 1 . . 2 4 Hackware 18 | . . . . . 1 3 . 1 . . . . . . . . 1 3 . 2 . . . . . . 1 3 2 . 1 Protection . | . . . . . . . . . . . . . . . . . . . . . . . . . . . . . . . . Artifact . | . . . . . . . . . . . . . . . . . . . . . . . . . . . . . . . . Weapon 62 | . 2 . 6 5 4 18 . 6 . . 1 . 4 . . . 2 3 . 1 . . . 2 . . 2 4 . 1 1 Energy Gun 24 | . 2 . 4 3 4 10 . . . . . . . . . . 1 . . . . . . . . . . . . . . Energy Cannon . | . . . . . . . . . . . . . . . . . . . . . . . . . . . . . . . . Ballistic Gun 3 | . . . 2 . . . . . . . . . . . . . . . . . . . . 1 . . . . . . . Ballistic Cannon . | . . . . . . . . . . . . . . . . . . . . . . . . . . . . . . . . Launcher . | . . . . . . . . . . . . . . . . . . . . . . . . . . . . . . . . Special Weapon . | . . . . . . . . . . . . . . . . . . . . . . . . . . . . . . . . Impact Weapon 4 | . . . . . . . . 2 . . . . . . . . . . . . . . . . . . . 2 . . . Slashing Weapon 13 | . . . . 2 . 8 . 2 . . 1 . . . . . . . . . . . . . . . . . . . . Piercing Weapon 17 | . . . . . . . . 2 . . . . 4 . . . 1 2 . 1 . . . 1 . . 2 2 . 1 1 Special Melee Weapon 1 | . . . . . . . . . . . . . . . . . . 1 . . . . . . . . . . . . . Unidentified Prototypes 32 | . . . . . . 4 . 2 1 . 1 . 3 . . . . 2 . . . . . . 2 1 1 3 5 . 7 Parts Lost 7 | . 1 . 1 . . 1 . . . . . . . . . . . 2 . 1 . . . . . . . . 1 . . Power 1 | . . . . . . 1 . . . . . . . . . . . . . . . . . . . . . . . . . Propulsion . | . . . . . . . . . . . . . . . . . . . . . . . . . . . . . . . . Utility 4 | . . . . . . . . . . . . . . . . . . 2 . 1 . . . . . . . . 1 . . Weapon 2 | . 1 . 1 . . . . . . . . . . . . . . . . . . . . . . . . . . . . Highest Loss Streak 1 | . 1 . 1 . . 1 . . . . . . . . . . . 1 . 1 . . . . . . . . 1 . . Average Slot Usage (%) 95 | . 64 64 96 100 99 95 94 93 92 89 93 95 94 95 95 95 95 96 100 99 100 100 100 99 100 99 98 100 98 99 99 Engine 8 | . 18 17 12 15 13 12 11 11 10 10 10 10 9 10 10 10 10 6 4 4 4 4 4 4 4 4 4 4 4 4 4 Core 1 | . . . . . . . . . . . . . . . . . . 2 4 4 4 4 4 4 4 4 4 4 4 3 4 Flight 11 | . 12 28 21 15 13 12 11 11 10 10 10 10 10 10 10 10 10 9 9 9 9 9 9 9 9 9 9 9 9 9 9 Device 15 | . . . . . . 1 5 5 15 15 15 21 25 25 25 25 25 23 23 23 23 23 23 22 23 22 21 22 21 21 21 Processor 25 | . . . 38 36 38 37 33 36 26 26 26 23 20 20 20 20 20 20 23 23 23 23 23 23 23 22 22 20 18 18 18 Hackware 9 | . . . . . 3 10 16 11 10 10 10 10 10 10 10 10 10 11 9 8 9 9 9 9 9 9 11 14 16 18 18 Energy Gun 5 | . 33 17 19 30 27 15 . . . . . . . . . . . . . . . . . . . . . . . . . Slashing Weapon 3 | . . . . . . 5 16 13 5 5 9 10 5 5 5 5 5 2 . . . . . . . . . . . . . Piercing Weapon 11 | . . . . . . . . 2 10 10 10 10 14 15 15 15 14 15 19 20 23 23 23 22 23 22 22 22 22 22 22 Naked Turns 9 | . 9 . . . . . . . . . . . . . . . . . . . . . . . . . . . . . . Heaviest Build 72 | . 9 7 25 28 28 31 30 33 33 33 35 37 49 49 45 45 45 49 45 56 61 57 56 58 56 56 64 66 64 72 72 Greatest Support 77 | 3 14 18 25 32 32 33 33 36 36 36 36 41 50 50 50 54 50 54 54 64 64 60 60 64 60 60 69 77 77 77 77 Greatest Overweight (x) 1 | . 1 . . . . . . . . . . . . . . . . . . . 1 . . . . . . . . 1 1 Average Overweight (x) . | . . . . . . . . . . . . . . . . . . . . . . . . . . . . . . . . Largest Inventory Capacity 4 | . . . 1 2 2 4 4 4 4 4 4 4 4 4 4 4 4 4 4 4 4 4 4 4 4 4 4 4 4 4 4 Average Capacity 3 | . . . . 1 2 3 4 4 4 4 4 4 4 4 4 4 4 4 4 4 4 4 4 4 4 4 4 4 4 4 4 Most Carried 4 | . . . 1 2 2 4 2 4 4 4 4 4 4 4 4 4 4 4 4 4 4 4 4 4 4 4 4 4 4 4 4 Average Carried 3 | . . . . 1 1 2 2 3 3 4 4 3 3 4 4 4 4 3 4 4 4 4 4 4 3 3 4 4 3 4 4 Final Capacity 4 | . . . 1 2 2 4 4 4 4 4 4 4 4 4 4 4 4 4 4 4 4 4 4 4 4 4 4 4 4 4 4 Final Carried 4 | . . . 1 2 2 2 2 2 4 4 4 3 4 4 4 4 4 4 4 4 4 4 4 4 4 4 4 4 4 4 4 Class Distribution -------------------- 62% | Hacker-Sprinter 9% | Machinist-Sprinter 8% | Wizard-Mutant 8% | Wizard-Sprinter 7% | Hacker-Mutant Dominant Class ---------------- Hacker-Mutant | -10/Materials Hacker-Mutant | -10/Mines Hacker-Mutant | -9/Materials Hacker-Sprinter | -9/Storage Hacker-Sprinter | -8/Materials Hacker-Sprinter | -7/Factory Hacker-Sprinter | -7/Waste Hacker-Sprinter | -7/Factory Hacker-Sprinter | -7/Lower Caves Hacker-Sprinter | -7/Lower Caves Hacker-Sprinter | -7/Zion Hacker-Sprinter | -6/Proximity Caves Hacker-Sprinter | -6/Factory Machinist-Sprinter | -6/Lower Caves Machinist-Sprinter | -6/Lower Caves Machinist-Sprinter | -6/Data Miner Hacker-Sprinter | -5/Proximity Caves Hacker-Sprinter | -5/Factory Hacker-Sprinter | -5/Waste Hacker-Sprinter | -5/Factory Hacker-Sprinter | -5/Extension Hacker-Sprinter | -5/Cetus Hacker-Sprinter | -5/Archives Hacker-Sprinter | -5/Hub_04(d) Hacker-Sprinter | -4/Factory Hacker-Sprinter | -4/Waste Wizard-Sprinter | -4/Factory Wizard-Mutant | -4/Armory Wizard-Mutant | -4/Lab Wizard-Mutant | -3/Research Wizard-Mutant | -3/Testing Resources | -11 -10 -10 -9 -9 -8 -7 -7 -7 -7 -7 -7 -6 -6 -6 -6 -6 -5 -5 -5 -5 -5 -5 -5 -5 -4 -4 -4 -4 -4 -3 -3 ----------- Run | Scr Mat Min Mat Sto Mat Fac Was Fac Low Low Zio Pro Fac Low Low Dat Pro Fac Was Fac Ext Cet Arc Hub Fac Was Fac Arm Lab Res Tes Matter Collected 3017 | 200 40 20 223 80 110 351 . 248 20 . 30 30 200 30 10 . 30 210 . 80 30 20 . 48 60 . 130 130 . 409 278 Remotely . | . . . . . . . . . . . . . . . . . . . . . . . . . . . . . . . . Salvage Created 30075 | . 772 70 1771 1478 2057 1902 . 1209 312 714 . 353 1865 628 1001 . 864 3478 . 1072 1389 358 169 2844 1081 548 1850 1011 . 477 802 Parts 1655 | . 39 12 126 118 107 109 . 71 34 39 . 25 82 39 39 . 44 207 . 88 60 16 5 100 49 16 91 68 5 32 34 Haulers Intercepted 34 | . 2 . 5 4 6 1 . 3 . . . . 4 . . . . . . . 6 . . 1 . . 2 . . . . Recyclers Shooed 1 | . . . . . 1 . . . . . . . . . . . . . . . . . . . . . . . . . . Parts Field Recycled . | . . . . . . . . . . . . . . . . . . . . . . . . . . . . . . . . Retrieved Matter . | . . . . . . . . . . . . . . . . . . . . . . . . . . . . . . . . Parts Self-Destructed 225 | . . . . . . . . . 44 45 . 27 . 39 25 . 45 . . . . . . . . . . . . . . Prevented 11 | . . . . . . . . . 8 . . 2 . 1 . . . . . . . . . . . . . . . . . Kills | -11 -10 -10 -9 -9 -8 -7 -7 -7 -7 -7 -7 -6 -6 -6 -6 -6 -5 -5 -5 -5 -5 -5 -5 -5 -4 -4 -4 -4 -4 -3 -3 ------- Run | Scr Mat Min Mat Sto Mat Fac Was Fac Low Low Zio Pro Fac Low Low Dat Pro Fac Was Fac Ext Cet Arc Hub Fac Was Fac Arm Lab Res Tes Combat Hostiles Destroyed 553 | . 15 6 36 39 32 43 . 29 12 18 . 9 26 16 20 . 18 69 . 28 16 5 1 28 14 . 32 19 1 7 14 Melee 384 | . . . . . . 2 . 29 12 18 . 9 26 16 20 . 18 69 . 28 16 5 1 28 14 . 32 19 1 7 14 Guns 134 | . 12 4 34 31 26 27 . . . . . . . . . . . . . . . . . . . . . . . . . AOE 28 | . 3 2 1 7 6 9 . . . . . . . . . . . . . . . . . . . . . . . . . Classes Destroyed 22 | . 6 . 5 . 2 1 . . 1 . . . . . 1 . . 1 . . . . . . . . 1 2 . . 2 Worker 20 | . 1 . 2 . 2 1 . . . . . . 1 . . . . 1 . . . . . 10 1 . . . . 1 . Builder 10 | . 1 . 1 . 2 1 . . . . . . . . . . . . . . . . . 5 . . . . . . . Tunneler 4 | . . . 3 . . . . . . . . . . . . . . . . . . . . . . . . . . 1 . Hauler 34 | . 2 . 5 4 6 1 . 3 . . . . 4 . . . . . . . 6 . . 1 . . 2 . . . . Recycler 9 | . . . 1 . 4 1 . . . . . . 1 . . . . . . . . . . 1 1 . . . . . . Operator 3 | . . . . . 1 . . . . . . . . . . . . . . . . . 1 1 . . . . . . . Watcher 44 | . 1 . 4 2 3 5 . 7 . . . . 4 . . . . 7 . 4 1 . . 2 . . 2 1 . 1 . Swarmer 101 | . 3 4 8 7 5 6 . 10 5 11 . 4 3 5 5 . 5 11 . . 1 . . 2 . . 6 . . . . Saboteur 3 | . . . . . . . . . . . . . . . . . . . . . . . . . . . . 3 . . . Grunt 227 | . 12 2 18 16 19 23 . 9 5 6 . . 12 6 3 . 7 31 . 16 4 1 . 14 10 . 9 . . . 4 Brawler 19 | . . . 1 4 . . . 1 . . . . 1 . 1 . 1 3 . . . . . 2 . . 2 3 . . . Duelist 18 | . . . 1 2 2 1 . . . . . . 2 1 1 . 2 2 . 2 . . . 1 . . 1 . . . . Protector 1 | . . . . . . . . . . . . . . . . . . . . . . . . . . . 1 . . . . Sentry 99 | . . . 8 10 6 9 . 6 1 1 . 1 6 1 1 . 2 11 . 5 7 . 1 7 4 . 5 4 . 3 . Demolisher 2 | . . . . . . . . . . . . . . . . . . 1 . . . . . 1 . . . . . . . Specialist 5 | . . . . . . . . . . . . . . . . . . . . . . . . . . . . 5 . . . Hunter 19 | . . . . . 1 2 . 1 . . . 2 . 2 2 . 1 5 . 2 . . . . . . 1 . . . . Programmer 24 | . . . . . . 2 . 2 . . . 1 1 . . . . 5 . 2 . 1 . . . . 6 3 . 1 . Behemoth 10 | . . . . . . . . . 1 . . 1 1 1 . . . . . 1 2 . . 1 . . 1 1 . . . Cetus Guard 3 | . . . . . . . . . . . . . . . . . . . . . . 3 . . . . . . . . . Tracker 6 | . . . . . . . . . . . . . . . . . . . . . . . . . . . . . . 2 4 Combat Programmer 4 | . . . . . . . . . . . . . . . . . . . . . . . . . . . . . . 1 3 Striker 2 | . . . . . . . . . . . . . . . . . . . . . . . . . . . . . . . 2 Alpha 7 1 | . . . . . . . . . . . . . . . . . . . . . . . . . . . . . . . 1 Thug 3 | . . . . . 1 . . . . . . . . . . . . . . . . . . 2 . . . . . . . Savage 1 | . . . . . . . . . . . . . . . 1 . . . . . . . . . . . . . . . . Butcher 6 | . . . . . . . . . . . . . . . 5 . . . . . 1 . . . . . . . . . . Guerrilla 2 | . . . . . . . . . . . . . . . . . . . . . 1 . . 1 . . . . . . . Mutant 1 | . . . . . . . . . . . . . . . 1 . . . . . . . . . . . . . . . . Best Kill Streak 13 | . 7 3 8 10 7 5 . 6 4 10 . 4 5 4 8 . 7 7 . 3 7 2 2 13 6 . 8 6 1 3 4 Combat Bots Only 10 | . 4 3 7 10 6 5 . 5 4 10 . 4 4 4 8 . 7 7 . 3 5 2 1 6 5 . 7 6 1 3 4 Max Kills in Single Turn 9 | . 2 2 3 4 5 3 . 2 2 2 . 1 1 2 1 . 1 2 . 1 1 1 1 9 1 . 2 1 1 1 1 Gunslinging 1 | . 1 . 1 1 1 . . . . . . . . . . . . . . . . . . . . . . . . . . Exploded 3 | . 2 2 1 2 1 3 . . . . . . . . . . . . . . . . . . . . . . . . . Melee 2 | . . . . . . 1 . 2 2 2 . 1 1 2 1 . 1 2 . 1 1 1 1 2 1 . 2 1 1 1 1 Uniques/NPCs Destroyed 1 | . . . . . . . . . . . . . . . . . . . . . . . . . . . . . 1 . . A5 (-4/Lab) Combat | -11 -10 -10 -9 -9 -8 -7 -7 -7 -7 -7 -7 -6 -6 -6 -6 -6 -5 -5 -5 -5 -5 -5 -5 -5 -4 -4 -4 -4 -4 -3 -3 -------- Run | Scr Mat Min Mat Sto Mat Fac Was Fac Low Low Zio Pro Fac Low Low Dat Pro Fac Was Fac Ext Cet Arc Hub Fac Was Fac Arm Lab Res Tes Damage Taken 15823 | . 554 125 1159 788 858 1958 . 1044 417 703 . 233 310 361 268 67 228 1658 . 469 161 295 25 536 113 . 1043 386 242 438 1384 Core 12799 | . 465 101 971 623 694 1568 . 839 337 568 . 191 252 297 219 60 190 1323 . 388 126 235 19 426 87 . 847 305 194 345 1129 Absorbed by Shields 4888 | . . . . . . . . 43 158 274 . 86 118 131 96 24 86 593 . 321 131 275 26 420 118 . 669 198 84 417 620 Redirected to Core 10210 | . 290 76 618 547 595 1295 . 643 267 433 . 133 194 228 175 27 127 1192 . 290 120 210 19 373 79 . 664 259 181 294 881 Core Remaining (%) 95 | 100 . 100 . 100 95 . . . . . . 100 . . . . 91 . . . . . . 79 . . . . 100 . . Volleys Fired 380 | . 43 23 114 52 60 81 . . . . . . . . . . . . . . . . . 7 . . . . . . . Largest 4 | . 2 1 3 4 4 4 . . . . . . . . . . . . . . . . . 1 . . . . . . . Hottest 180 | . 80 40 135 180 180 180 . . . . . . . . . . . . . . . . . 33 . . . . . . . Shots Fired 1028 | . 77 23 193 205 240 283 . . . . . . . . . . . . . . . . . 7 . . . . . . . Gun 1028 | . 77 23 193 205 240 283 . . . . . . . . . . . . . . . . . 7 . . . . . . . Cannon . | . . . . . . . . . . . . . . . . . . . . . . . . . . . . . . . . Launcher . | . . . . . . . . . . . . . . . . . . . . . . . . . . . . . . . . Special . | . . . . . . . . . . . . . . . . . . . . . . . . . . . . . . . . Kinetic 60 | . . . 53 . . . . . . . . . . . . . . . . . . . . 7 . . . . . . . Thermal 1 | . . . 1 . . . . . . . . . . . . . . . . . . . . . . . . . . . . Explosive . | . . . . . . . . . . . . . . . . . . . . . . . . . . . . . . . . Electromagnetic 967 | . 77 23 139 205 240 283 . . . . . . . . . . . . . . . . . . . . . . . . . Robot Hit Streak 43 | . 13 16 43 42 26 38 . . . . . . . . . . . . . . . . . . . . . . . . . Robot Miss Streak 5 | . 3 1 2 5 4 2 . . . . . . . . . . . . . . . . . . . . . . . . . Penetration Max . | . . . . . . . . . . . . . . . . . . . . . . . . . . . . . . . . Secondary Targets 32 | . 2 . 6 9 6 9 . . . . . . . . . . . . . . . . . . . . . . . . . Max Gunslinging Chain 2 | . 1 . 1 2 1 1 . . . . . . . . . . . . . . . . . . . . . . . . . Shots Hit Robots 1876 | . 53 20 156 168 169 251 . 95 26 35 . 25 93 31 57 1 33 180 . 80 39 32 4 59 29 10 93 41 13 32 51 Core Hits 1087 | . 32 8 100 92 110 138 . 41 14 18 . 11 42 18 25 . 25 102 . 45 27 15 3 65 20 5 52 26 6 20 27 Critical Hits 182 | . . . 2 . 3 9 . 12 4 6 . 3 15 3 4 . 5 24 . 19 11 2 . 6 4 2 13 11 2 7 15 Critical Kills 73 | . . . 1 . . 4 . 5 2 4 . 1 7 1 2 . 1 12 . 6 4 . . 1 1 . 6 8 . 1 6 Critical Parts Destroyed 90 | . . . 1 . 3 4 . 7 2 2 . 2 8 2 2 . 3 10 . 11 6 2 . 3 3 . 5 3 1 3 7 Melee Attacks 1605 | . . . . 3 . 14 . 133 36 45 . 39 173 37 70 1 43 245 . 107 55 44 10 85 33 11 147 99 68 38 69 Impact . | . . . . . . . . . . . . . . . . . . . . . . . . . . . . . . . . Slashing 492 | . . . . 3 . 14 . 129 25 34 . 26 117 21 40 1 25 57 . . . . . . . . . . . . . Piercing 1113 | . . . . . . . . 4 11 11 . 13 56 16 30 . 18 188 . 107 55 44 10 85 33 11 147 99 68 38 69 Sneak Attacks 74 | . . . . . . . . 9 2 . . 2 11 1 3 1 . 10 . 1 14 . 1 6 3 . 6 2 . 2 . Combat Hostiles 37 | . . . . . . . . 3 2 . . 2 3 1 2 . . 9 . 1 3 . . 5 1 . 3 2 . . . Follow-up Attacks 335 | . . . . . . 1 . 21 5 9 . 12 27 10 18 . 12 57 . 21 11 15 . 14 7 2 39 15 7 11 21 Damage Inflicted 85546 | . 1202 339 2821 2935 3791 5283 . 6584 1768 2329 . 1412 6282 1895 3078 183 1822 10778 . 4626 3477 1747 333 6084 1796 732 5755 2679 977 1730 3108 Guns 11939 | . 724 241 2290 2464 2503 3717 . . . . . . . . . . . . . . . . . . . . . . . . . Cannons . | . . . . . . . . . . . . . . . . . . . . . . . . . . . . . . . . Explosions 6163 | . 478 98 531 471 1288 1111 . . . . . . . . . . . . . . . . . 2186 . . . . . . . Melee 67444 | . . . . . . 455 . 6584 1768 2329 . 1412 6282 1895 3078 183 1822 10778 . 4626 3477 1747 333 3898 1796 732 5755 2679 977 1730 3108 Ramming . | . . . . . . . . . . . . . . . . . . . . . . . . . . . . . . . . Kinetic 345 | . . . 345 . . . . . . . . . . . . . . . . . . . . . . . . . . . . Thermal 3930 | . 478 98 541 471 1231 1111 . . . . . . . . . . . . . . . . . . . . . . . . . Explosive . | . . . . . . . . . . . . . . . . . . . . . . . . . . . . . . . . Electromagnetic 13827 | . 724 241 1935 2464 2560 3717 . . . . . . . . . . . . . . . . . 2186 . . . . . . . Impact . | . . . . . . . . . . . . . . . . . . . . . . . . . . . . . . . . Slashing 24833 | . . . . . . 455 . 6545 1586 1921 . 1041 5250 1441 2326 183 1321 2764 . . . . . . . . . . . . . Piercing 42611 | . . . . . . . . 39 182 408 . 371 1032 454 752 . 501 8014 . 4626 3477 1747 333 3898 1796 732 5755 2679 977 1730 3108 Highest Corruption 16 | . . . . 1 3 5 8 8 . . . . 1 1 . . . 2 . 1 1 1 . 2 . . 1 1 4 3 16 Average Corruption 2 | . . . . 1 2 4 3 3 . . . . 1 1 . . . 1 . 1 1 1 . 2 . . 1 1 2 1 6 Corruption Purged 23 | . . . . . . 4 . 10 . . . . 1 1 . . . 3 . . . 1 . . . . 1 1 . . 1 Effects 108 | . . . . . 9 32 . 28 . . . . . 1 . . . 8 . . . . . 1 . . 3 4 4 1 17 Message Errors 24 | . . . . . 1 7 . 5 . . . . . . . . . 3 . . . . . 1 . . . 2 2 . 3 Matter Fused 18 | . . . . . 2 5 . 6 . . . . . . . . . . . . . . . . . . . . 1 . 4 Heat Flow Errors 14 | . . . . . . 6 . 5 . . . . . . . . . 2 . . . . . . . . . . . 1 . Energy Discharges 15 | . . . . . 3 4 . 3 . . . . . 1 . . . 1 . . . . . . . . 1 . 1 . 1 Parts Rejected 1 | . . . . . . . . . . . . . . . . . . . . . . . . . . . . . . . 1 Data Loss (minor) 15 | . . . . . . 4 . 5 . . . . . . . . . 1 . . . . . . . . 2 . . . 3 Data Loss (major) 1 | . . . . . . . . . . . . . . . . . . . . . . . . . . . . . . . 1 Misfires 1 | . . . . . . 1 . . . . . . . . . . . . . . . . . . . . . . . . . Targeting Errors 17 | . . . . . 3 3 . 4 . . . . . . . . . 1 . . . . . . . . . 2 . . 4 Weapon Failures 2 | . . . . . . 2 . . . . . . . . . . . . . . . . . . . . . . . . . Overload Shots . | . . . . . . . . . . . . . . . . . . . . . . . . . . . . . . . . Overflow Damage 5471 | . 32 . 31 16 108 80 . 977 267 397 . 88 820 22 181 173 126 634 . 151 74 67 . 380 115 . 232 110 102 207 81 Projectiles . | . . . . . . . . . . . . . . . . . . . . . . . . . . . . . . . . Explosions 460 | . 32 . 31 16 108 25 . . . . . . . . . . . . . . . . . 248 . . . . . . . Melee 5011 | . . . . . . 55 . 977 267 397 . 88 820 22 181 173 126 634 . 151 74 67 . 132 115 . 232 110 102 207 81 Knockbacks . | . . . . . . . . . . . . . . . . . . . . . . . . . . . . . . . . Impact . | . . . . . . . . . . . . . . . . . . . . . . . . . . . . . . . . Kinetic . | . . . . . . . . . . . . . . . . . . . . . . . . . . . . . . . . Secondary . | . . . . . . . . . . . . . . . . . . . . . . . . . . . . . . . . Self-Inflicted Damage 1140 | . 170 . 173 47 168 340 . . . . . . . . . . . . . . . . . 242 . . . . . . . Shots 29 | . 5 . 6 1 4 10 . . . . . . . . . . . . . . . . . 3 . . . . . . . Rammed . | . . . . . . . . . . . . . . . . . . . . . . . . . . . . . . . . Targets Rammed . | . . . . . . . . . . . . . . . . . . . . . . . . . . . . . . . . Kicked . | . . . . . . . . . . . . . . . . . . . . . . . . . . . . . . . . Crushed . | . . . . . . . . . . . . . . . . . . . . . . . . . . . . . . . . Highest Temperature 429 | . 174 93 429 385 344 409 . 262 . . . . . . . . . 243 . . 1 . . 5 . . 4 . . 107 . Average Temperature 110 | . 51 28 107 123 133 114 . 122 . . . . . . . . . 113 . . 1 . . 2 . . 3 . . 62 . Received Heat Transfer 2995 | . 105 54 393 288 288 573 . 234 137 48 . 14 62 75 26 8 30 249 . 106 32 23 4 45 25 . 116 30 . 8 22 Effects 20 | . . . 9 3 1 7 . . . . . . . . . . . . . . . . . . . . . . . . . Shutdowns 1 | . . . 1 . . . . . . . . . . . . . . . . . . . . . . . . . . . . Energy Bleed 3 | . . . 1 . 1 1 . . . . . . . . . . . . . . . . . . . . . . . . . Interference 15 | . . . 6 3 . 6 . . . . . . . . . . . . . . . . . . . . . . . . . Damage (minor) 1 | . . . 1 . . . . . . . . . . . . . . . . . . . . . . . . . . . . Siege Activations . | . . . . . . . . . . . . . . . . . . . . . . . . . . . . . . . . Robots Corrupted 13 | . . . 1 1 1 5 . . . . . . . . . . . . . . . . . 5 . . . . . . . Combat Hostiles 7 | . . . 1 1 . 5 . . . . . . . . . . . . . . . . . . . . . . . . . Parts Fried 108 | . 4 . 7 20 19 37 . . . . . . . . . . . . . . 1 . . 20 . . . . . . . Impact Corruptions . | . . . . . . . . . . . . . . . . . . . . . . . . . . . . . . . . Robots Melted . | . . . . . . . . . . . . . . . . . . . . . . . . . . . . . . . . Combat Hostiles . | . . . . . . . . . . . . . . . . . . . . . . . . . . . . . . . . Parts Melted 4 | . . . 1 . . 2 . . . . . . . . . . . . . . . . . 1 . . . . . . . Heat Transferred 4178 | . 500 100 775 503 1400 900 . . . . . . . . . . . . . . . . . . . . . . . . . Parts Sabotaged . | . . . . . . . . . . . . . . . . . . . . . . . . . . . . . . . . Parts Stolen . | . . . . . . . . . . . . . . . . . . . . . . . . . . . . . . . . Parts Stripped . | . . . . . . . . . . . . . . . . . . . . . . . . . . . . . . . . Power Chain Reactions 53 | . 6 1 9 7 14 16 . . . . . . . . . . . . . . . . . . . . . . . . . Missiles Intercepted . | . . . . . . . . . . . . . . . . . . . . . . . . . . . . . . . . Alert | -11 -10 -10 -9 -9 -8 -7 -7 -7 -7 -7 -7 -6 -6 -6 -6 -6 -5 -5 -5 -5 -5 -5 -5 -5 -4 -4 -4 -4 -4 -3 -3 ------- Run | Scr Mat Min Mat Sto Mat Fac Was Fac Low Low Zio Pro Fac Low Low Dat Pro Fac Was Fac Ext Cet Arc Hub Fac Was Fac Arm Lab Res Tes Peak Influence 2364 | . 315 413 511 1181 841 1248 451 919 . . . . 739 . . . . 899 314 652 1048 640 412 2209 1841 1100 2364 1234 . 355 392 Average Influence 554 | . 148 272 304 542 543 747 435 522 . . . . 316 . . . . 564 301 297 518 409 376 853 1555 1100 1465 743 . 157 206 Maximum Alert Level 5 | . 1 2 2 4 3 4 2 3 . . . . 3 . . . . 3 1 2 3 2 2 5 5 4 5 4 . 1 1 Low Security (%) 17 | 100 74 27 27 25 . 2 . 1 . . . . 28 . . . . 13 . 23 16 26 . 8 . . . . . 66 46 Level 1 27 | . 25 52 46 8 32 17 . 24 . . . . 55 . . . . 12 100 60 26 10 38 13 . . . 3 . 33 53 Level 2 24 | . . 19 26 27 42 25 100 43 . . . . 6 . . . . 37 . 15 26 62 61 14 . . 9 37 . . . Level 3 20 | . . . . 34 25 36 . 29 . . . . 8 . . . . 37 . . 30 . . 41 12 . 10 50 . . . Level 4 6 | . . . . 3 . 17 . . . . . . . . . . . . . . . . . 14 25 100 45 7 . . . Level 5 2 | . . . . . . . . . . . . . . . . . . . . . . . . 6 55 . 16 . . . . High Security . | . . . . . . . . . . . . . . . . . . . . . . . . . 7 . 16 . . . . Max Security . | . . . . . . . . . . . . . . . . . . . . . . . . . . . . . . . . Squads Dispatched 150 | . 5 . 6 11 6 15 . 14 . . . . 6 . 1 . . 19 . 10 2 . . 11 6 . 13 5 . 4 16 Investigation 34 | . 4 . 2 3 1 3 . 3 . . . . 1 . . . . 11 . 3 . . . . 1 . . . . . 2 Extermination 18 | . . . . . . 2 . 3 . . . . 3 . . . . 3 . 2 . . . 1 . . 1 2 . 1 . Reinforcement 40 | . 1 . 4 3 3 5 . 2 . . . . 1 . . . . . . 2 1 . . 4 1 . 5 2 . . 6 Assault 23 | . . . . 4 1 4 . . . . . . 1 . 1 . . 2 . . 1 . . . 1 . 6 1 . . 1 Garrison 25 | . . . . 1 1 1 . 6 . . . . . . . . . 3 . 3 . . . 6 3 . 1 . . . . Intercept 10 | . . . . . . . . . . . . . . . . . . . . . . . . . . . . . . 3 7 Construction Impeded 6 | . . . . . . 1 . . . . . . . . . . . . . . 1 . . 2 . . 2 . . . . Haulers Reinforced 3 | . . . . . . 1 . . . . . . 1 . . . . . . . . . . . . . 1 . . . . Stealth | -11 -10 -10 -9 -9 -8 -7 -7 -7 -7 -7 -7 -6 -6 -6 -6 -6 -5 -5 -5 -5 -5 -5 -5 -5 -4 -4 -4 -4 -4 -3 -3 --------- Run | Scr Mat Min Mat Sto Mat Fac Was Fac Low Low Zio Pro Fac Low Low Dat Pro Fac Was Fac Ext Cet Arc Hub Fac Was Fac Arm Lab Res Tes Distress Signals 31 | . . . 2 1 6 . . 1 . . . . . . . . . 4 . 1 . 2 . 5 1 . 3 3 . 1 1 Communications Jammed 1 | . . . . . . . . . . . . . . . . . . . . . . . . . . . . . . 1 . Distress Signals 1 | . . . . . . . . . . . . . . . . . . . . . . . . . . . . . . 1 . Times Spotted 855 | . 25 11 54 55 47 78 4 45 16 23 . 10 38 17 21 4 19 88 5 38 22 17 4 48 14 . 58 57 1 15 21 Peak Tracking Total 29 | . 5 3 9 9 6 14 4 5 6 13 . 4 4 4 7 4 7 12 5 4 4 5 3 8 5 . 10 29 1 4 6 Tactical Retreats 22 | . 2 1 1 . 5 3 . 1 . . . . . 1 1 . . . . 1 . . . . . . . 4 . 2 . Traps | -11 -10 -10 -9 -9 -8 -7 -7 -7 -7 -7 -7 -6 -6 -6 -6 -6 -5 -5 -5 -5 -5 -5 -5 -5 -4 -4 -4 -4 -4 -3 -3 ------- Run | Scr Mat Min Mat Sto Mat Fac Was Fac Low Low Zio Pro Fac Low Low Dat Pro Fac Was Fac Ext Cet Arc Hub Fac Was Fac Arm Lab Res Tes Traps Triggered 13 | . 3 . . . 3 1 . . . . . . . . . . . 1 . . . . . 1 1 . 2 . . . 1 Indirectly 1 | . . . . . . . . . . . . . . . . . . . . . . . . 1 . . . . . . . Trap Hack Attempts . | . . . . . . . . . . . . . . . . . . . . . . . . . . . . . . . . Triggered . | . . . . . . . . . . . . . . . . . . . . . . . . . . . . . . . . Disarmed . | . . . . . . . . . . . . . . . . . . . . . . . . . . . . . . . . Reprogrammed 6 | . . . . . . . . . . . . . . . . . . . . . . . . . . . . 6 . . . Reused . | . . . . . . . . . . . . . . . . . . . . . . . . . . . . . . . . Traps Extracted . | . . . . . . . . . . . . . . . . . . . . . . . . . . . . . . . . Installed . | . . . . . . . . . . . . . . . . . . . . . . . . . . . . . . . . Triggered 7 | . . . . . . 1 . . 4 . . 1 . 1 . . . . . . . . . . . . . . . . . Machines | -11 -10 -10 -9 -9 -8 -7 -7 -7 -7 -7 -7 -6 -6 -6 -6 -6 -5 -5 -5 -5 -5 -5 -5 -5 -4 -4 -4 -4 -4 -3 -3 ---------- Run | Scr Mat Min Mat Sto Mat Fac Was Fac Low Low Zio Pro Fac Low Low Dat Pro Fac Was Fac Ext Cet Arc Hub Fac Was Fac Arm Lab Res Tes Machines Disabled 87 | . 1 1 . 7 3 2 . . 2 1 . . . . . . . . . . 3 2 1 30 12 . 13 4 2 . 3 Max in Single Turn 16 | . 1 . . 2 2 1 . . 1 1 . . . . . . . . . . . . . 16 . . . 1 1 . 1 Garrison Access 10 | . . . . 1 1 1 . . . . . . 1 . . . . 1 . . . . . 2 . . 1 . . 1 1 Network Hub 3 | . . . . . . . . . . . . . . . . . . . . . . . . 3 . . . . . . . Machines Sabotaged . | . . . . . . . . . . . . . . . . . . . . . . . . . . . . . . . . Garrisons Compromised . | . . . . . . . . . . . . . . . . . . . . . . . . . . . . . . . . Overloaded Fab Kills . | . . . . . . . . . . . . . . . . . . . . . . . . . . . . . . . . Fab Network Shutdowns 5 | . . . . . . 1 . . . . . . 1 . . . . . . 1 . . . . . . 1 1 . . . Hacking | -11 -10 -10 -9 -9 -8 -7 -7 -7 -7 -7 -7 -6 -6 -6 -6 -6 -5 -5 -5 -5 -5 -5 -5 -5 -4 -4 -4 -4 -4 -3 -3 --------- Run | Scr Mat Min Mat Sto Mat Fac Was Fac Low Low Zio Pro Fac Low Low Dat Pro Fac Was Fac Ext Cet Arc Hub Fac Was Fac Arm Lab Res Tes Machines Accessed 218 | . 6 1 8 11 8 18 . 22 2 3 1 . 28 . . 4 . 25 . 15 16 2 . 12 4 . 9 9 1 5 8 Terminals 161 | . 6 1 8 9 7 13 . 15 1 1 . . 19 . . . . 16 . 11 16 2 . 10 3 . 6 7 . 4 6 Fabricators 22 | . . . . . . 3 . 3 . . . . 4 . . . . 5 . 2 . . . . . . 2 2 . . 1 Repair Stations . | . . . . . . . . . . . . . . . . . . . . . . . . . . . . . . . . Recycling Units 1 | . . . . 1 . . . . . . . . . . . . . . . . . . . . . . . . . . . Scanalyzers 2 | . . . . . . 1 . . . . . . 1 . . . . . . . . . . . . . . . . . . Garrison Access 23 | . . . . 1 1 1 . 4 . . . . 4 . . . . 4 . 2 . . . 2 1 . 1 . . 1 1 Total Hacks 1314 | . 39 6 48 84 41 76 . 133 13 20 2 . 135 . . 25 . 126 . 85 79 19 . 67 31 . 66 96 1 65 57 Successful 823 | . 18 4 29 53 27 45 . 72 12 17 2 . 93 . . 25 . 78 . 54 44 15 . 43 20 . 37 52 1 43 39 Failed 486 | . 20 2 19 30 14 31 . 60 1 3 . . 42 . . . . 47 . 30 35 4 . 24 11 . 29 44 . 22 18 Catastrophic 76 | . 1 . 2 2 3 6 . 7 1 . . . 7 . . . . 9 . 5 10 . . 1 2 . 4 10 . 6 . Database Lockouts 8 | . 1 . . 3 . . . 1 . . . . . . . . . 1 . 2 . . . . . . . . . . . Manual 820 | . 27 6 34 76 32 33 . 77 3 5 4 . 86 . . . . 76 . 60 61 12 . 53 21 . 31 65 . 43 15 Terminals 1053 | . 39 6 48 73 39 59 . 97 12 13 . . 95 . . . . 85 . 61 79 19 . 55 23 . 58 84 . 64 44 Fabricators 131 | . . . . . . 12 . 17 . . . . 27 . . . . 28 . 16 . . . . . . 7 12 . . 12 Repair Stations . | . . . . . . . . . . . . . . . . . . . . . . . . . . . . . . . . Recycling Units 4 | . . . . 4 . . . . . . . . . . . . . . . . . . . . . . . . . . . Scanalyzers 4 | . . . . . . 2 . . . . . . 2 . . . . . . . . . . . . . . . . . . Garrison Access 86 | . . . . 7 2 3 . 19 . . . . 11 . . . . 13 . 8 . . . 12 8 . 1 . . 1 1 Terminal Hacks 467 | . 13 4 19 34 15 22 . 34 11 16 2 . 42 . . 25 . 36 . 29 32 10 . 17 8 . 17 27 1 33 20 Record 42 | . . . . . 1 . . . 9 14 . . . . . 11 . . . . . 5 . . . . . . 1 1 . Part Schematic 62 | . . . . . . 3 . 7 . . 2 . 8 . . 7 . 7 . 3 9 . . 3 . . 1 1 . 11 . Robot Schematic 15 | . . . . . . 1 . . . . . . . . . 4 . 4 . . 1 . . . . . 1 4 . . . Robot Analysis 20 | . . . . . 1 2 . 3 . . . . 1 . . . . 2 . . . . . . 2 . 1 . . 5 3 Prototype ID Bank 51 | . 5 4 7 12 . 1 . 2 . . . . 9 . . 3 . 3 . 1 . . . . . . 1 1 . 2 . Open Door 14 | . . . . 3 . . . . 1 1 . . . . . . . . . . 8 1 . . . . . . . . . Level Access Points 14 | . 2 . 1 1 1 . . 1 . . . . . . . . . 1 . 1 1 . . 1 2 . . 1 . 1 . Branch Access Points 18 | . 1 . 1 . 1 1 . 1 1 1 . . 1 . . . . 1 . 1 1 . . 1 1 . 1 1 . 2 1 Emergency Access Points 1 | . . . . . . . . . . . . . . . . . . . . . . . . . . . . . . 1 . Machine Index 7 | . . . . . . 1 . 1 . . . . . . . . . . . . 1 . . 1 . . . 1 . 1 1 Terminal Index 15 | . 1 . 1 1 1 1 . 2 . . . . 1 . . . . . . 1 1 . . 1 1 . 1 . . 1 1 Fabricator Index 5 | . . . . . . . . . . . . . 1 . . . . . . 1 . . . . 1 . . . . 1 1 Repair Station Index 1 | . . . . . . . . . . . . . . . . . . . . . . . . . . . 1 . . . . Recycling Unit Index 1 | . . . . . . . . . . . . . 1 . . . . . . . . . . . . . . . . . . Scanalyzer Index 2 | . . . . . . . . . . . . . 1 . . . . . . 1 . . . . . . . . . . . Garrison Index 3 | . . . . . . . . . . . . . 1 . . . . . . 1 . . . . . . . . . 1 . Alert Level 55 | . 1 . 3 2 1 1 . 6 . . . . 9 . . . . 2 . 6 4 2 . 4 . . 2 5 . 3 4 Unreport Threat 73 | . . . 6 5 5 4 . 8 . . . . 4 . . . . 9 . 7 5 2 . 5 1 . 4 8 . . . Locate Traps 2 | . . . . . . . . . . . . . . . . . . 1 . . . . . . . . . 1 . . . Reprogram Traps 1 | . . . . . . . . . . . . . . . . . . . . . . . . . . . . 1 . . . Dispatch Records 3 | . . . . 1 1 . . . . . . . . . . . . . . . . . . . . . . 1 . . . Maintenance Status 1 | . . . . . . . . . . . . . . . . . . . . . . . . . . . 1 . . . . Security Status 4 | . . . . 2 . . . . . . . . . . . . . 1 . . . . . . . . . 1 . . . Surveillance Status 1 | . . . . . . . . . . . . . . . . . . . . . . . . . . . . 1 . . . Patrol Status 2 | . . . . 1 . . . . . . . . . . . . . . . . . . . . . . 1 . . . . Transport Status 1 | . . . . 1 . . . . . . . . . . . . . . . . . . . . . . . . . . . Reinforcement Status 2 | . . . . . . . . . . . . . . . . . . . . . . . . . . . . . . . 2 Recall Investigation 7 | . 1 . . 2 . . . . . . . . . . . . . 2 . 2 . . . . . . . . . . . Recall Extermination 3 | . . . . . . . . . . . . . 1 . . . . 1 . 1 . . . . . . . . . . . Recall Reinforcements 6 | . 1 . . . . 2 . . . . . . . . . . . . . . . . . . . . . . . . 3 Recall Assault 2 | . . . . . . 1 . . . . . . . . . . . . . . 1 . . . . . . . . . . Hauler Manifests 15 | . 1 . . 1 1 2 . 1 . . . . 2 . . . . 1 . 2 . . . 1 . . 1 . . 1 1 Registered Components 8 | . . . . 1 1 1 . 1 . . . . 1 . . . . . . 1 . . . . . . . . . 1 1 Registered Prototypes 7 | . . . . 1 . 1 . 1 . . . . 1 . . . . 1 . . . . . . . . 1 . . 1 . Zone Layout 1 | . . . . . 1 . . . . . . . . . . . . . . . . . . . . . . . . . . Protovariant Controls 2 | . . . . . . . . . . . . . . . . . . . . . . . . . . . . . . . 2 Fabricator Hacks 84 | . . . . . . 8 . 11 . . . . 19 . . . . 16 . 10 . . . . . . 5 9 . . 6 Load Schematic 40 | . . . . . . 3 . 5 . . . . 9 . . . . 8 . 6 . . . . . . 2 4 . . 3 Build 44 | . . . . . . 5 . 6 . . . . 10 . . . . 8 . 4 . . . . . . 3 5 . . 3 Repair Station Hacks . | . . . . . . . . . . . . . . . . . . . . . . . . . . . . . . . . Recycling Unit Hacks 1 | . . . . 1 . . . . . . . . . . . . . . . . . . . . . . . . . . . Report Inventory 1 | . . . . 1 . . . . . . . . . . . . . . . . . . . . . . . . . . . Scanalyzer 4 | . . . . . . 2 . . . . . . 2 . . . . . . . . . . . . . . . . . . Insert Component 2 | . . . . . . 1 . . . . . . 1 . . . . . . . . . . . . . . . . . . Analyze 2 | . . . . . . 1 . . . . . . 1 . . . . . . . . . . . . . . . . . . Garrison Access Hacks 7 | . . . . 1 . 1 . . . . . . . . . . . 1 . . . . . 2 . . . . . 1 1 Seal Access 7 | . . . . 1 . 1 . . . . . . . . . . . 1 . . . . . 2 . . . . . 1 1 Unauthorized Hacks 599 | . 12 . 23 40 24 32 . 69 2 2 . . 67 . . . . 57 . 37 24 12 . 55 28 . 35 37 . 18 25 Terminals 191 | . 5 . 10 12 10 9 . 12 1 1 . . 19 . . . . 12 . 9 12 5 . 20 8 . 12 14 . 9 11 Track 78 | . 2 . 5 5 4 3 . 5 1 1 . . 10 . . . . 3 . 5 6 2 . 6 3 . 4 6 . 3 4 Assimilate 26 | . . . 1 1 1 2 . 2 . . . . 5 . . . . 4 . 1 . . . 6 . . 1 . . . 2 Botnet 52 | . 3 . 3 4 3 3 . 3 . . . . 3 . . . . 3 . 3 3 2 . 3 3 . 3 4 . 3 3 Disrupt 16 | . . . . 1 1 1 . . . . . . . . . . . 1 . . 2 . . 3 1 . 1 3 . 1 1 Operators 19 | . . . 1 1 1 . . 2 . . . . 1 . . . . 1 . . 1 1 . 2 1 . 3 1 . 2 1 Fabricators 23 | . . . . . . 2 . 3 . . . . 5 . . . . 5 . 3 . . . . . . 2 2 . . 1 Report 5 | . . . . . . . . 1 . . . . 1 . . . . 1 . 1 . . . . . . . 1 . . . Prioritize 8 | . . . . . . 1 . 1 . . . . 1 . . . . 1 . 1 . . . . . . 1 1 . . 1 Siphon 7 | . . . . . . . . 1 . . . . 2 . . . . 2 . 1 . . . . . . 1 . . . . Haulers 2 | . . . . . . . . . . . . . 1 . . . . 1 . . . . . . . . . . . . . Download 1 | . . . . . . 1 . . . . . . . . . . . . . . . . . . . . . . . . . Repair Stations . | . . . . . . . . . . . . . . . . . . . . . . . . . . . . . . . . Recycling Units 2 | . . . . 2 . . . . . . . . . . . . . . . . . . . . . . . . . . . Reject 1 | . . . . 1 . . . . . . . . . . . . . . . . . . . . . . . . . . . Mask 1 | . . . . 1 . . . . . . . . . . . . . . . . . . . . . . . . . . . Scanalyzers . | . . . . . . . . . . . . . . . . . . . . . . . . . . . . . . . . Garrison Access 43 | . . . . 3 2 1 . 12 . . . . 6 . . . . 8 . 3 . . . 4 3 . 1 . . . . Reprogram 35 | . . . . 3 1 . . 11 . . . . 4 . . . . 7 . 3 . . . 3 2 . 1 . . . . Watchers 8 | . . . . . 1 1 . 1 . . . . 2 . . . . 1 . . . . . 1 1 . . . . . . Data Cores Recovered . | . . . . . . . . . . . . . . . . . . . . . . . . . . . . . . . . Used . | . . . . . . . . . . . . . . . . . . . . . . . . . . . . . . . . Hacking Detections 172 | . 6 1 8 10 8 17 . 20 1 1 . . 21 . . . . 23 . 11 12 1 . 8 4 . 6 5 . 4 5 Full Trace Events 27 | . 1 1 2 4 1 1 . 1 1 . . . 1 . . . . 10 . 2 . . . . . . . . . . 2 Feedback Events 7 | . . . . 1 . . . . . . . . . . . . . 4 . 1 . . . . . . . . . . 1 Corruption 4 | . . . . 1 . . . . . . . . . . . . . 2 . . . . . . . . . . . . 1 Hackware Fried 3 | . . . . . . . . . . . . . . . . . . 2 . 1 . . . . . . . . . . . Feedback Blocked . | . . . . . . . . . . . . . . . . . . . . . . . . . . . . . . . . Robot Schematics Acquired 15 | . . . . . . 1 . . . . . . . . . 4 . 4 . . 1 . . . . . 1 4 . . . Robots Built 5 | . . . . . . . . . . . . . . . . . . 5 . . . . . . . . . . . . . Matter 504 | . . . . . . . . . . . . . . . . . . 504 . . . . . . . . . . . . . Time 134 | . . . . . . . . . . . . . . . . . . 134 . . . . . . . . . . . . . Total Robot Build Rating 20 | . . . . . . . . . . . . . . . . . . 20 . . . . . . . . . . . . . Part Schematics Acquired 59 | . . . . . . 5 . 6 . . 2 . 7 . . 7 . 7 . 2 8 . . 3 . . 1 1 . 10 . Parts Built 38 | . . . . . . 6 . 6 . . . . 8 . . . . 4 . 5 . . . . . . 1 5 . . 3 Matter 7514 | . . . . . . 906 . 880 . . . . 1121 . . . . 965 . 1159 . . . . . . 256 1309 . . 918 Time 1592 | . . . . . . 173 . 262 . . . . 264 . . . . 229 . 299 . . . . . . 64 202 . . 99 Total Part Build Rating 235 | . . . . . . 28 . 28 . . . . 45 . . . . 28 . 36 . . . . . . 8 37 . . 25 Parts Repaired . | . . . . . . . . . . . . . . . . . . . . . . . . . . . . . . . . Time . | . . . . . . . . . . . . . . . . . . . . . . . . . . . . . . . . Parts Recycled . | . . . . . . . . . . . . . . . . . . . . . . . . . . . . . . . . Recycled Matter . | . . . . . . . . . . . . . . . . . . . . . . . . . . . . . . . . Retrieved Matter . | . . . . . . . . . . . . . . . . . . . . . . . . . . . . . . . . Retrieved Components . | . . . . . . . . . . . . . . . . . . . . . . . . . . . . . . . . Parts Scanalyzed 2 | . . . . . . 1 . . . . . . 1 . . . . . . . . . . . . . . . . . . Part Schematics Acquired 2 | . . . . . . 1 . . . . . . 1 . . . . . . . . . . . . . . . . . . Parts Damaged . | . . . . . . . . . . . . . . . . . . . . . . . . . . . . . . . . Bothacking | -11 -10 -10 -9 -9 -8 -7 -7 -7 -7 -7 -7 -6 -6 -6 -6 -6 -5 -5 -5 -5 -5 -5 -5 -5 -4 -4 -4 -4 -4 -3 -3 ------------ Run | Scr Mat Min Mat Sto Mat Fac Was Fac Low Low Zio Pro Fac Low Low Dat Pro Fac Was Fac Ext Cet Arc Hub Fac Was Fac Arm Lab Res Tes Used RIF Installer . | . . . . . . . . . . . . . . . . . . . . . . . . . . . . . . . . Robots Hacked . | . . . . . . . . . . . . . . . . . . . . . . . . . . . . . . . . Non-combat . | . . . . . . . . . . . . . . . . . . . . . . . . . . . . . . . . Combat . | . . . . . . . . . . . . . . . . . . . . . . . . . . . . . . . . Robot Hacks Applied . | . . . . . . . . . . . . . . . . . . . . . . . . . . . . . . . . Relay Couplers Released 2 | . . . . . 1 . . . . . . . 1 . . . . . . . . . . . . . . . . . . Machine Destruction 2 | . . . . . 1 . . . . . . . 1 . . . . . . . . . . . . . . . . . . Robots Rewired 9 | . . . . . . . . . . . . . . . 1 . 2 . . . 5 . . . 1 . . . . . . Allies Hacked 4 | . . . . . . . . 1 1 . . . . . . . . . . . . 1 . 1 . . . . . . . Hacks Repelled . | . . . . . . . . . . . . . . . . . . . . . . . . . . . . . . . . Allies | -11 -10 -10 -9 -9 -8 -7 -7 -7 -7 -7 -7 -6 -6 -6 -6 -6 -5 -5 -5 -5 -5 -5 -5 -5 -4 -4 -4 -4 -4 -3 -3 -------- Run | Scr Mat Min Mat Sto Mat Fac Was Fac Low Low Zio Pro Fac Low Low Dat Pro Fac Was Fac Ext Cet Arc Hub Fac Was Fac Arm Lab Res Tes Total Allies 149 | . . 5 1 8 1 2 . 18 1 . 3 . 6 . 1 . 2 23 . 10 17 5 . 13 4 20 1 . . . 8 Largest Group 23 | . . 5 5 8 8 3 . 12 10 8 11 9 8 1 1 1 2 10 5 5 22 23 20 22 8 20 20 . . . 6 Highest-Rated Group 1111 | . . 80 80 112 112 59 . 230 184 130 200 167 150 40 20 20 58 236 162 142 794 1111 938 879 455 776 776 . . . 85 Highest-Rated Ally 156 | . . 31 26 31 31 26 . 38 38 21 25 25 41 40 20 20 29 41 41 29 156 156 134 94 94 50 50 . . . 44 Total Orders 109 | . . . 11 13 4 17 . 4 . . . . 12 . . . . 22 . 4 7 . . 15 . . . . . . . STAY 10 | . . . 4 . . 1 . . . . . . 2 . . . . 3 . . . . . . . . . . . . . GOTO 50 | . . . 1 6 2 8 . 2 . . . . 5 . . . . 9 . 2 5 . . 10 . . . . . . . FOLLOW 49 | . . . 6 7 2 8 . 2 . . . . 5 . . . . 10 . 2 2 . . 5 . . . . . . . Ally Attacks 902 | . . 15 22 38 46 . . 16 25 34 . 21 35 1 . . 6 85 23 38 59 102 30 132 11 . 150 . . . 13 Total Damage 20785 | . . 210 259 645 339 . . 606 600 439 . 380 743 44 . . 76 1400 449 611 1221 2405 550 2429 1432 . 5629 . . . 318 Kills 141 | . . 4 5 10 3 . . 8 6 4 . 2 11 . . . 1 8 1 3 14 14 3 14 5 . 24 . . . 1 Allies Corrupted 8 | . . . . . . . . . . . . . . . . . . . . . . . . 7 . . . . . . 1 Allies Melted 1 | . . . . . . . . . . . . . . . . . . . . . . . . . . . 1 . . . . Intel | -11 -10 -10 -9 -9 -8 -7 -7 -7 -7 -7 -7 -6 -6 -6 -6 -6 -5 -5 -5 -5 -5 -5 -5 -5 -4 -4 -4 -4 -4 -3 -3 ------- Run | Scr Mat Min Mat Sto Mat Fac Was Fac Low Low Zio Pro Fac Low Low Dat Pro Fac Was Fac Ext Cet Arc Hub Fac Was Fac Arm Lab Res Tes Robot Analysis Total 20 | . . . . . 1 2 . 3 . . . . 1 . . . . 2 . . . . . . 2 . 1 . . 5 3 Derelict Logs Recovered 17 | . . 2 . . . . . . 2 1 1 3 . 3 2 . 3 . . . . . . . . . . . . . . Drone Launches 12 | . . . . . . . . . . . . . . . . . . . . . 12 . . . . . . . . . . Drone Recoveries . | . . . . . . . . . . . . . . . . . . . . . . . . . . . . . . . . Exploration | -11 -10 -10 -9 -9 -8 -7 -7 -7 -7 -7 -7 -6 -6 -6 -6 -6 -5 -5 -5 -5 -5 -5 -5 -5 -4 -4 -4 -4 -4 -3 -3 ------------- Run | Scr Mat Min Mat Sto Mat Fac Was Fac Low Low Zio Pro Fac Low Low Dat Pro Fac Was Fac Ext Cet Arc Hub Fac Was Fac Arm Lab Res Tes Turns Passed 22071 | 15 587 416 931 702 731 2186 22 1752 683 463 584 503 2021 774 459 33 537 2116 70 1139 591 536 84 571 306 125 881 809 467 421 556 Spaces Moved 31686 | 30 737 682 1150 940 1119 2755 68 3100 1165 854 827 879 2960 1032 883 99 938 3107 143 1301 915 568 119 1145 615 229 1190 869 221 520 526 Core 298 | 30 243 . . . . . . . . . . . . . . . . . . . 1 . . . . . . . . 12 12 Treads . | . . . . . . . . . . . . . . . . . . . . . . . . . . . . . . . . Legs . | . . . . . . . . . . . . . . . . . . . . . . . . . . . . . . . . Wheels . | . . . . . . . . . . . . . . . . . . . . . . . . . . . . . . . . Hover . | . . . . . . . . . . . . . . . . . . . . . . . . . . . . . . . . Flight 31388 | . 494 682 1150 940 1119 2755 68 3100 1165 854 827 879 2960 1032 883 99 938 3107 143 1301 914 568 119 1145 615 229 1190 869 221 508 514 Fastest Speed 26 | 50 40 37 37 32 32 29 29 29 32 32 32 32 26 32 32 26 32 26 26 26 26 32 32 26 32 32 26 26 37 37 37 Average Speed 33 | 50 43 38 37 34 32 31 29 31 32 32 32 32 31 32 32 31 32 31 30 31 31 32 32 31 32 32 31 34 37 42 40 Slowest Speed 120 | 50 100 40 37 37 32 32 32 32 32 32 32 32 32 32 32 32 35 32 32 32 100 32 32 32 32 32 32 37 37 120 120 Overloaded Moves 380 | . . . . . . 14 53 34 . . . . 4 . . 14 . 49 30 28 27 . . 65 . . 40 22 . . . Propulsion Burnouts . | . . . . . . . . . . . . . . . . . . . . . . . . . . . . . . . . Robots Hopped 208 | . 12 6 23 18 19 24 . 30 . . . . 8 . . . . 8 . 12 1 . . 27 4 . 2 . . 11 3 Cave-ins Triggered 2 | . . . . . . . . . . . . . . . . . . . . . . 1 . . . . . . 1 . . Exploration Rate (%) 74 | 4 97 98 92 87 80 67 72 73 98 92 83 97 67 92 94 69 98 68 83 26 85 94 89 91 22 89 39 57 98 16 66 Regions Visited 31 Branch Regions 17 Pre-discovered Areas 5 | . . 1 . 1 . . . . 1 . . . . . 1 1 . . . . . . . . . . . . . . . Known Exits Taken 18 | . 1 1 1 1 1 . . 1 1 1 . 1 1 1 . . 1 . . 1 1 . . 1 . . 1 . 1 1 . Unknown Exits Taken 7 | 1 . . . . . . . . . . 1 . . . 1 1 . . . . . 1 1 . . . . 1 . . . Scrap Searched 29 | . . 2 . . . . . . 3 4 3 3 . 7 4 . 3 . . . . . . . . . . . . . . Spaces Dug 201 | . . . . . . 3 . 17 2 1 . 5 42 . . . . 24 . 8 4 6 4 7 . . 16 24 33 1 4 Terrain Destroyed 911 | . 11 2 30 22 66 102 . 17 2 1 . 5 42 . . . . 24 . 8 4 6 4 487 . . 16 24 33 1 4 Melee 201 | . . . . . . 3 . 17 2 1 . 5 42 . . . . 24 . 8 4 6 4 7 . . 16 24 33 1 4 Projectile . | . . . . . . . . . . . . . . . . . . . . . . . . . . . . . . . . AOE 710 | . 11 2 30 22 66 99 . . . . . . . . . . . . . . . . . 480 . . . . . . . Actions | -11 -10 -10 -9 -9 -8 -7 -7 -7 -7 -7 -7 -6 -6 -6 -6 -6 -5 -5 -5 -5 -5 -5 -5 -5 -4 -4 -4 -4 -4 -3 -3 --------- Run | Scr Mat Min Mat Sto Mat Fac Was Fac Low Low Zio Pro Fac Low Low Dat Pro Fac Was Fac Ext Cet Arc Hub Fac Was Fac Arm Lab Res Tes Total 40878 | 29 911 808 1459 1163 1324 3820 69 3632 1438 996 1145 1061 3852 1440 995 99 1136 4030 168 1936 1173 891 155 1257 701 275 1598 1303 563 676 775 Wait 6631 | . 128 91 140 134 99 825 2 376 215 73 314 142 720 362 50 . 148 643 26 546 163 284 23 50 38 25 238 342 250 74 110 Move 31267 | 29 714 670 1105 904 1084 2708 67 3041 1164 853 826 878 2945 1031 882 98 937 3091 142 1276 912 567 118 1098 608 228 1185 868 219 498 521 Hop 182 | . 10 5 21 17 15 23 . 28 . . . . 6 . . . . 8 . 12 1 . . 19 3 . 2 . . 10 2 Pick Up 46 | . . . 1 1 4 10 . 4 4 2 . 1 8 . . . 1 3 . 1 . . . . 2 1 . . 3 . . Fast Attach 183 | . 4 1 12 4 7 21 . 12 2 . 3 . 13 . 1 . 2 10 . 4 . . . 3 4 2 6 9 9 29 25 Attach 18 | . . . . . . 10 . 2 . . . 1 . . . . . 3 . . . . . . . 1 . . 1 . . Detach 10 | . . . . . . 4 . . . . . . . . . . . 3 . . . . . . . 1 . . 2 . . Swap 68 | . . 1 5 4 3 3 . 4 . . . 2 7 3 . . 1 10 . 2 3 2 . . 1 1 3 4 . 1 8 Drop 195 | . . 1 8 2 7 26 . 16 3 2 2 . 21 . . . 3 11 . 3 . . . 2 7 4 4 9 9 29 26 Fire 380 | . 43 23 114 52 60 81 . . . . . . . . . . . . . . . . . 7 . . . . . . . Melee 988 | . . . . 3 . 13 . 91 25 34 . 20 113 21 40 1 25 152 . 67 32 25 8 53 22 8 75 57 43 22 38 Ram . | . . . . . . . . . . . . . . . . . . . . . . . . . . . . . . . . Kick . | . . . . . . . . . . . . . . . . . . . . . . . . . . . . . . . . Crush . | . . . . . . . . . . . . . . . . . . . . . . . . . . . . . . . . Escape Stasis 47 | . . . . . . . . . . . . . . . . . . . . . . . . . . . 36 . 1 . 10 Rewire 55 | . . . . . . . . . 1 . . . . . 6 . 5 . . . 39 . . 1 3 . . . . . . Trap . | . . . . . . . . . . . . . . . . . . . . . . . . . . . . . . . . Miscellaneous 808 | . 12 16 53 42 45 96 . 58 24 32 . 17 19 23 16 . 14 96 . 25 23 13 6 24 13 4 49 14 26 13 35 Route ------- -11/Scrapyard -10/Materials (discovered 4 exits: *Mat x3 / *Min) -10/Mines (discovered 2 exits: *Mat x2) -9/Materials (discovered 7 exits: *Mat x3 / *Min x2 / *Sto x2) -9/Storage -8/Materials (discovered 3 exits: *Fac x3) -7/Factory (discovered 6 exits: *Fac x4 / *Low x2) -7/Waste -7/Factory (discovered 6 exits: *Fac x4 / *Low x2) -7/Lower Caves -7/Lower Caves (discovered 2 exits: *Fac / *Zio) -7/Zion (discovered 2 exits: [*Dee] / [*Pro]) -6/Proximity Caves -6/Factory (discovered 5 exits: *Fac x3 / *Low x2) -6/Lower Caves -6/Lower Caves (discovered 2 exits: *Fac / *Dat) -6/Data Miner -5/Proximity Caves -5/Factory (discovered 8 exits: *Fac x4 / *Upp x2 / *Ext x2) -5/Waste -5/Factory (discovered 8 exits: Fac x4 / *Upp x2 / *Ext x2) -5/Extension (discovered 3 exits: *Fac x2 / *Cet) -5/Cetus (discovered 3 exits: *Fac x2 / *Arc) -5/Archives (discovered 3 exits: *Fac / *Hub x2) -5/Hub_04(d) (discovered 4 exits: *Fac x4) -4/Factory (discovered 7 exits: Res x4 / Upp x2 / Arm) -4/Waste -4/Factory (discovered 3 exits: *Upp x2 / *Arm) -4/Armory (discovered 3 exits: *Res x2 / *Lab) -4/Lab -3/Research (discovered 5 exits: Res x3 / *Tes x2) -3/Testing (discovered 1 exit: *Res) History --------- Turn | Location | Event 2 | -11/Scrapyard | Discovered new exit (range 16) 16 | -11/Scrapyard | Entered Materials 23 | -10/Materials | Identified exit to Mines 94 | -10/Materials | Upgraded with Weapon slot (x1) 281 | -10/Materials | Discovered new exit (range 13) 304 | -10/Materials | Identified exit to Materials 324 | -10/Materials | Build established: Hacker-Mutant 417 | -10/Materials | Central database locked down 441 | -10/Materials | Core integrity fell below 50% 472 | -10/Materials | Reached level 2 603 | -10/Materials | Entered Mines 606 | -10/Mines | Discovered exit to Materials (range 6) 607 | -10/Mines | Learned location of Storage (-9) 719 | -10/Mines | Reached level 3 739 | -10/Mines | Upgraded with Propulsion slot (x1) 830 | -10/Mines | Learned 2 Materials zone layouts 839 | -10/Mines | Discovered exit to Materials (range 5) 842 | -10/Mines | Assisted by bots powering up and referring to "LRC-V3" 1019 | -10/Mines | Entered Materials 1019 | -9/Materials | Accompanied by 5 allies 1020 | -9/Materials | Identified exit to Mines 1021 | -9/Materials | Reached level 4 1022 | -9/Materials | Discovered new exit (range 16) 1044 | -9/Materials | Reached level 5 1067 | -9/Materials | Upgraded with Utility slot (x3) 1205 | -9/Materials | Identified exit to Storage 1271 | -9/Materials | Reached level 6 1390 | -9/Materials | Core integrity fell below 50% 1412 | -9/Materials | Identified exit to Materials 1466 | -9/Materials | Reached level 7 1487 | -9/Materials | Destroyed 7 combat bots 1522 | -9/Materials | Upgraded with Weapon slot (x1) 1743 | -9/Materials | Upgraded with Power slot (x1) 1850 | -9/Materials | Reached level 8 1950 | -9/Materials | Entered Storage 1950 | -9/Storage | Accompanied by 1 ally 1967 | -9/Storage | Upgraded with Weapon slot (x1) 2008 | -9/Storage | Learned location of Armory (-4) 2009 | -9/Storage | Build established: Hacker-Gunner 2020 | -9/Storage | Met a pair of Derelict thieves 2040 | -9/Storage | Reached level 9 2155 | -9/Storage | Central database locked down 2233 | -9/Storage | Upgraded with Utility slot (x1) 2350 | -9/Storage | First assault squad dispatched 2375 | -9/Storage | Reached level 10 2438 | -9/Storage | Destroyed 10 combat bots 2517 | -9/Storage | Garrison activated, responded to threat 2530 | -9/Storage | Build established: Hacker-Sprinter 2652 | -9/Storage | Entered Materials 2652 | -8/Materials | Accompanied by 8 allies 2654 | -8/Materials | Reached level 11 2674 | -8/Materials | Reached level 12 2927 | -8/Materials | Identified exit to Factory 2970 | -8/Materials | Upgraded with Utility slot (x2) 3025 | -8/Materials | Reached level 13 3180 | -8/Materials | Garrison activated, responded to threat 3383 | -8/Materials | Entered Factory 3383 | -7/Factory | Accompanied by 1 ally 3385 | -7/Factory | Reached level 14 3435 | -7/Factory | Identified exit to Lower Caves 3618 | -7/Factory | Reached level 15 3741 | -7/Factory | Discovered new exit (range 8) 4001 | -7/Factory | Discovered new exit (range 10) 4092 | -7/Factory | Garrison activated, responded to threat 4261 | -7/Factory | Upgraded with Utility slot (x1) 4291 | -7/Factory | Reached level 16 4431 | -7/Factory | Discovered new exit (range 14) 4578 | -7/Factory | Discovered new exit (range 15) 4583 | -7/Factory | First assault squad dispatched 4837 | -7/Factory | Fabricated Imp. Melee Analysis Suite (x1) 4866 | -7/Factory | Fabricated Imp. Melee Analysis Suite (x1) 4943 | -7/Factory | Fabricated Falx (x2) 4971 | -7/Factory | Fabricated Imp. System Shield (x1) 4972 | -7/Factory | Upgraded with Utility slot (x2) 4997 | -7/Factory | Fabricated Imp. System Shield (x1) 5184 | -7/Factory | Local fabrication network quarantined 5569 | -7/Factory | Manually triggered Chute Trap 5569 | -7/Factory | Sucked down chute 5569 | -7/Factory | Entered Waste 5572 | -7/Waste | Spotted C-40 Crusher 5580 | -7/Waste | Spotted C-40 Crusher 5584 | -7/Waste | EMP discharged 5584 | -7/Waste | Spotted C-40 Crusher 5586 | -7/Waste | Spotted C-40 Crusher 5586 | -7/Waste | Discovered new exit (range 12) 5591 | -7/Waste | Entered Factory 5901 | -7/Factory | Identified exit to Factory 5994 | -7/Factory | Garrison activated, responded to threat 6094 | -7/Factory | Reached level 17 6385 | -7/Factory | Garrison activated, responded to threat 6784 | -7/Factory | Central database locked down 6922 | -7/Factory | Fabricated Imp. Hacking Suite (x1) 6991 | -7/Factory | Fabricated Spear (x2) 7010 | -7/Factory | Fabricated Imp. Maneuvering Thrusters (x1) 7045 | -7/Factory | Fabricated Imp. Armor Integrity Analyzer (x1) 7158 | -7/Factory | Fabricated Imp. Target Analyzer (x1) 7343 | -7/Factory | Entered Lower Caves 7343 | -7/Lower Caves | Accompanied by 9 allies 7345 | -7/Lower Caves | Reached level 18 7403 | -7/Lower Caves | Spotted B-75 Beast 7418 | -7/Lower Caves | Learned Factory stockpile data 7443 | -7/Lower Caves | Encountered a Warlord checkpoint 7536 | -7/Lower Caves | Discovered new exit (range 5) 7652 | -7/Lower Caves | Destroyed B-75 Beast 7693 | -7/Lower Caves | Attracted the attention of an 0b10 base 7717 | -7/Lower Caves | Core integrity fell below 50% 7751 | -7/Lower Caves | Learned location of Extension (-5) 7751 | -7/Lower Caves | Learned location of 2 exits from Lower Caves 7751 | -7/Lower Caves | Learned 6 Proximity Caves zone layouts 7751 | -7/Lower Caves | Identified exit to Lower Caves 7754 | -7/Lower Caves | Learned Factory emergency access door positions 7773 | -7/Lower Caves | Found Alien Artifact 7773 | -7/Lower Caves | Identified Core Expander 7773 | -7/Lower Caves | Installed Core Expander, added new Weapon slot 8026 | -7/Lower Caves | Entered another Lower Caves area 8026 | -7/Lower Caves | Accompanied by 8 allies 8026 | -7/Lower Caves | Discovered exit to Factory (range 11) 8027 | -7/Lower Caves | Identified exit to Zion 8065 | -7/Lower Caves | Learned location of 1 exit from Factory 8065 | -7/Lower Caves | Learned Armory trap positions 8065 | -7/Lower Caves | Learned Extension emergency access door positions 8065 | -7/Lower Caves | Learned Armory security intel 8145 | -7/Lower Caves | Attracted the attention of an 0b10 base 8205 | -7/Lower Caves | Destroyed 10 combat bots 8212 | -7/Lower Caves | Learned location of 1 exit from Factory 8220 | -7/Lower Caves | Learned 8 Factory zone layouts 8220 | -7/Lower Caves | Learned 6 Upper Caves zone layouts 8220 | -7/Lower Caves | Learned Factory security intel 8220 | -7/Lower Caves | Learned Extension security intel 8220 | -7/Lower Caves | Learned Research terminal intel 8220 | -7/Lower Caves | Learned Armory terminal intel 8489 | -7/Lower Caves | Entered Zion 8489 | -7/Zion | Accompanied by 8 allies 8507 | -7/Zion | Found Prototype Device 8507 | -7/Zion | Identified Mobile Refinery Mk. CCLXVII 8520 | -7/Zion | Discovered new exit (range 8) 8523 | -7/Zion | Given A8's code to call for help 8557 | -7/Zion | Loaded intel: 5 derelict terminal locations 8621 | -7/Zion | Acquired unknown access codes intercepted by a Zionite 8688 | -7/Zion | Gained Derelict followers 8719 | -7/Zion | Opened final containment barrier to the Deep Caves 8724 | -7/Zion | Discovered new exit (range 3) 8724 | -7/Zion | Saw the warning signs outside the Deep Caves entrance 9073 | -7/Zion | Entered Proximity Caves 9073 | -6/Proximity Caves | Accompanied by 9 allies 9075 | -6/Proximity Caves | Reached level 19 9076 | -6/Proximity Caves | Upgraded with Utility slot (x1) 9129 | -6/Proximity Caves | Spotted B-75 Beast 9157 | -6/Proximity Caves | Destroyed B-75 Beast 9296 | -6/Proximity Caves | Learned 4 Factory zone layouts 9342 | -6/Proximity Caves | P-60 Hacker assimilated allied G-47 Trooper 9386 | -6/Proximity Caves | Attracted the attention of an 0b10 checkpoint 9410 | -6/Proximity Caves | Learned Factory terminal intel 9480 | -6/Proximity Caves | Discovered exit to Factory (range 16) 9514 | -6/Proximity Caves | Learned Factory trap positions 9576 | -6/Proximity Caves | Entered Factory 9576 | -6/Factory | Accompanied by 6 allies 9577 | -6/Factory | Identified exit to Lower Caves 9578 | -6/Factory | Identified exit to Factory 9580 | -6/Factory | Loaded intel: 106 trap records 9584 | -6/Factory | Loaded intel: 20 terminal locations 9629 | -6/Factory | Reached level 20 9652 | -6/Factory | Spotted B-75 Beast 9652 | -6/Factory | Destroyed B-75 Beast 10746 | -6/Factory | Fabricated Imp. Core Analyzer? 10756 | -6/Factory | Fabricated Lance (x2) 10792 | -6/Factory | Fabricated Imp. Phase Shifter? 10796 | -6/Factory | Fabricated Lance? 11130 | -6/Factory | Fabricated Actuator Array (x1) 11137 | -6/Factory | Build established: Machinist-Sprinter 11233 | -6/Factory | Fabricated Imp. Actuator Array (x1) 11406 | -6/Factory | Local fabrication network quarantined 11597 | -6/Factory | Entered Lower Caves 11597 | -6/Lower Caves | Accompanied by 1 ally 11598 | -6/Lower Caves | Encountered a Warlord checkpoint 11598 | -6/Lower Caves | Identified exit to Lower Caves 11599 | -6/Lower Caves | Reached level 21 11611 | -6/Lower Caves | Learned Factory terminal intel 11636 | -6/Lower Caves | Attracted the attention of an 0b10 checkpoint 11683 | -6/Lower Caves | Spotted B-75 Beast 11714 | -6/Lower Caves | Destroyed B-75 Beast 11718 | -6/Lower Caves | Learned 4 Factory zone layouts 12371 | -6/Lower Caves | Entered another Lower Caves area 12375 | -6/Lower Caves | Discovered exit to Factory (range 10) 12400 | -6/Lower Caves | Attacked by a faux Warlord 12465 | -6/Lower Caves | Destroyed 8 combat bots 12675 | -6/Lower Caves | Discovered new exit (range 23) 12720 | -6/Lower Caves | Learned Factory trap positions 12729 | -6/Lower Caves | Attracted the attention of an 0b10 outpost 12799 | -6/Lower Caves | Destroyed 7 combat bots 12830 | -6/Lower Caves | Entered Data Miner 12830 | -6/Data Miner | Accompanied by 1 ally 12830 | -6/Data Miner | Discovered new exit (range 6) 12837 | -6/Data Miner | Met Data Miner 12846 | -6/Data Miner | Learned location of Section 7 (-2) 12846 | -6/Data Miner | Acquired the access code to Warlord's prototype stash 12851 | -6/Data Miner | Received God Mode back door access code from Data Miner 12858 | -6/Data Miner | Data Conduit disabled 12863 | -6/Data Miner | Entered Proximity Caves 12872 | -5/Proximity Caves | Learned Factory interactive machine intel 13071 | -5/Proximity Caves | Reached level 22 13085 | -5/Proximity Caves | Attracted the attention of an 0b10 checkpoint 13125 | -5/Proximity Caves | Attracted the attention of an 0b10 outpost 13172 | -5/Proximity Caves | Destroyed 7 combat bots 13206 | -5/Proximity Caves | Discovered exit to Factory (range 16) 13214 | -5/Proximity Caves | Learned Factory emergency access door positions 13214 | -5/Proximity Caves | Learned Factory terminal intel 13236 | -5/Proximity Caves | Build established: Hacker-Sprinter 13400 | -5/Proximity Caves | Entered Factory 13400 | -5/Factory | Accompanied by 2 allies 13401 | -5/Factory | Identified exit to Upper Caves 13401 | -5/Factory | Identified exit to Extension 13403 | -5/Factory | Loaded intel: 64 trap records 13405 | -5/Factory | Loaded intel: 47 interactive machine locations 13406 | -5/Factory | Loaded intel: 21 terminal locations 13457 | -5/Factory | Discovered new exit (range 2) 13603 | -5/Factory | Reached level 23 13606 | -5/Factory | Upgraded with Utility slot (x1) 13644 | -5/Factory | Destroyed 7 combat bots 13809 | -5/Factory | Discovered new exit (range 22) 13871 | -5/Factory | Spotted B-75 Beast 13977 | -5/Factory | Build established: Wizard-Sprinter 13979 | -5/Factory | Discovered new exit (range 9) 14208 | -5/Factory | Central database locked down 14208 | -5/Factory | Adv. Hacking Suite fried by hacking feedback 14209 | -5/Factory | Garrison activated, responded to threat 14283 | -5/Factory | Destroyed 7 combat bots 14565 | -5/Factory | Reached level 24 14612 | -5/Factory | Discovered new exit (range 10) 14710 | -5/Factory | Identified exit to Factory 14740 | -5/Factory | Adv. Hacking Suite fried by hacking feedback 14873 | -5/Factory | Fabricated Reaction Control System? 14878 | -5/Factory | Fabricated Adv. Actuator Array? 14900 | -5/Factory | First assault squad dispatched 14940 | -5/Factory | Fabricated S-27 Virus? 14954 | -5/Factory | Fabricated Adv. Target Analyzer? 15007 | -5/Factory | Fabricated I-36 Angel (x1) 15030 | -5/Factory | Build established: Hacker-Sprinter 15499 | -5/Factory | Fabricated Exp. System Shield (x1) 15516 | -5/Factory | Manually triggered Chute Trap 15516 | -5/Factory | Sucked down chute 15516 | -5/Factory | Entered Waste 15522 | -5/Waste | Spotted C-40 Crusher 15524 | -5/Waste | Spotted C-40 Crusher 15532 | -5/Waste | Spotted C-40 Crusher 15559 | -5/Waste | Spotted C-40 Crusher 15566 | -5/Waste | Spotted C-40 Crusher 15569 | -5/Waste | Spotted C-40 Crusher 15570 | -5/Waste | Discovered new exit (range 14) 15575 | -5/Waste | 4 allies followed down the chute 15580 | -5/Waste | 4 allies followed down the chute 15586 | -5/Waste | Entered Factory 15587 | -5/Factory | Loaded intel: 22 terminal locations 15589 | -5/Factory | Discovered exit to Upper Caves (range 21) 15708 | -5/Factory | Central database locked down 15764 | -5/Factory | Exp. System Shield fried by hacking feedback 15926 | -5/Factory | Fabricated Exp. System Shield (x1) 15993 | -5/Factory | Fabricated Adv. Force Field? 16029 | -5/Factory | Garrison activated, responded to threat 16158 | -5/Factory | Fabricated Adv. Target Analyzer? 16215 | -5/Factory | Fabricated Kinetic Spear (x1) 16231 | -5/Factory | Reached level 25 16487 | -5/Factory | Local fabrication network quarantined 16531 | -5/Factory | Spotted B-75 Beast 16544 | -5/Factory | Destroyed B-75 Beast 16725 | -5/Factory | Entered Extension 16725 | -5/Extension | Accompanied by 5 allies 16742 | -5/Extension | Identified exit to Cetus 16743 | -5/Extension | Rescued A7 16747 | -5/Extension | Rescued a captive Derelict 16749 | -5/Extension | Rescued a captive Derelict 16767 | -5/Extension | Rescued a captive Derelict 16829 | -5/Extension | Rescued a captive Derelict 16832 | -5/Extension | Rescued a captive Derelict 16833 | -5/Extension | Rescued a captive Derelict 16838 | -5/Extension | Rescued a captive Derelict 16854 | -5/Extension | Spotted B-75 Beast 16861 | -5/Extension | Spotted B-75 Beast 16879 | -5/Extension | Destroyed B-75 Beast 16885 | -5/Extension | Destroyed B-75 Beast 17025 | -5/Extension | First assault squad dispatched 17030 | -5/Extension | Rescued a captive Derelict 17031 | -5/Extension | Rescued a captive Derelict 17147 | -5/Extension | Rescued a captive Derelict 17147 | -5/Extension | Rescued a captive Derelict 17225 | -5/Extension | Disrupted transfer network 17235 | -5/Extension | Disrupted transfer network 17316 | -5/Extension | Entered Cetus 17316 | -5/Cetus | Accompanied by 18 allies 17321 | -5/Cetus | Acquired a Cetus Manufacturing Module code from A7 17322 | -5/Cetus | Spotted Cetus Guard 17322 | -5/Cetus | Spotted Cetus Guard 17325 | -5/Cetus | Spotted Cetus Guard 17325 | -5/Cetus | Spotted Cetus Guard 17329 | -5/Cetus | Destroyed Cetus Guard 17330 | -5/Cetus | Allies destroyed Cetus Guard 17337 | -5/Cetus | Allies destroyed Cetus Guard 17341 | -5/Cetus | Destroyed Cetus Guard 17357 | -5/Cetus | Discovered exit to Factory (range 22) 17379 | -5/Cetus | Started Cetus Manufacturing Module 17404 | -5/Cetus | Manufactured an Enhanced Grunt 17429 | -5/Cetus | Manufactured an Enhanced Grunt 17454 | -5/Cetus | Manufactured an Enhanced Grunt 17479 | -5/Cetus | Manufactured an Enhanced Grunt 17504 | -5/Cetus | Manufactured an Enhanced Grunt 17609 | -5/Cetus | Discovered new exit (range 15) 17615 | -5/Cetus | Spotted Cetus Guard 17616 | -5/Cetus | Spotted Cetus Guard 17661 | -5/Cetus | Spotted Cetus Guard 17661 | -5/Cetus | Spotted Cetus Guard 17664 | -5/Cetus | Destroyed Cetus Guard 17668 | -5/Cetus | Allies destroyed Cetus Guard 17674 | -5/Cetus | Allies destroyed Cetus Guard 17719 | -5/Cetus | Discovered exit to Factory (range 16) 17721 | -5/Cetus | Met Revision 17 17760 | -5/Cetus | P-70 Sage assimilated allied KH-25R(h) 17850 | -5/Cetus | Crushed by falling debris 17852 | -5/Cetus | Entered Archives 17852 | -5/Archives | Accompanied by 20 allies 17858 | -5/Archives | Unable to access archive contents 17860 | -5/Archives | Discovered exit to Factory (range 13) 17861 | -5/Archives | Discovered new exit (range 20) 17864 | -5/Archives | Reached level 26 17880 | -5/Archives | Discovered new exit (range 16) 17936 | -5/Archives | Entered Hub_04(d) 17936 | -5/Hub_04(d) | Accompanied by 18 allies 17939 | -5/Hub_04(d) | Discovered exit to Factory (range 22) 17940 | -5/Hub_04(d) | Discovered exit to Factory (range 3) 17976 | -5/Hub_04(d) | Discovered exit to Factory (range 18) 18163 | -5/Hub_04(d) | Garrison activated, responded to threat 18174 | -5/Hub_04(d) | Garrison activated, responded to threat 18177 | -5/Hub_04(d) | Spotted B-75 Beast 18179 | -5/Hub_04(d) | Destroyed B-75 Beast 18194 | -5/Hub_04(d) | P-70 Sage assimilated hostile L-41 Fighter 18468 | -5/Hub_04(d) | Network Hub disabled 18468 | -5/Hub_04(d) | Network Hub disabled 18468 | -5/Hub_04(d) | Allied Derelicts emerged from ambush trap array 18484 | -5/Hub_04(d) | Spotted Lightning 18491 | -5/Hub_04(d) | Network Hub disabled 18491 | -5/Hub_04(d) | Spotted Lightning 18491 | -5/Hub_04(d) | Spotted Lightning 18491 | -5/Hub_04(d) | Spotted Lightning 18507 | -5/Hub_04(d) | Entered Factory 18507 | -4/Factory | Accompanied by 5 allies 18549 | -4/Factory | Reached level 27 18555 | -4/Factory | Garrison activated, responded to threat 18584 | -4/Factory | Identified exit to Research 18745 | -4/Factory | Identified exit to Upper Caves 18745 | -4/Factory | Identified exit to Armory 18757 | -4/Factory | First assault squad dispatched 18790 | -4/Factory | High security lockdown imminent 18813 | -4/Factory | Manually triggered Chute Trap 18813 | -4/Factory | Sucked down chute 18813 | -4/Factory | Entered Waste 18814 | -4/Waste | Joined by Warlord forces that had cleared the area 18835 | -4/Waste | Found Prototype Device 18835 | -4/Waste | Identified Exp. Weapon Cycler 18887 | -4/Waste | Discovered new exit (range 13) 18921 | -4/Waste | Upgraded with Utility slot (x1) 18938 | -4/Waste | Entered Factory 18938 | -4/Factory | Accompanied by 20 allies 18957 | -4/Factory | Garrison activated, responded to threat 19016 | -4/Factory | Spotted B-86 Titan 19041 | -4/Factory | Destroyed B-86 Titan 19133 | -4/Factory | Reached level 28 19188 | -4/Factory | First assault squad dispatched 19486 | -4/Factory | Build established: Wizard-Sprinter 19526 | -4/Factory | Discovered exit to Upper Caves (range 4) 19677 | -4/Factory | High security lockdown imminent 19698 | -4/Factory | Destroyed 7 combat bots 19740 | -4/Factory | Local fabrication network quarantined 19745 | -4/Factory | Fabricated Enh. Force Lance (x1) 19757 | -4/Factory | High security lockdown engaged 19819 | -4/Factory | Entered Armory 19820 | -4/Armory | Loaded intel: 29 trap records 19822 | -4/Armory | Loaded intel: 14 terminal locations 20137 | -4/Armory | Fabricated Q-thruster (x2) 20188 | -4/Armory | Fabricated Exp. System Shield (x1) 20261 | -4/Armory | Fabricated Exp. Hacking Suite (x1) 20308 | -4/Armory | Fabricated Exp. Hacking Suite (x1) 20330 | -4/Armory | Spotted B-86 Titan 20397 | -4/Armory | Destroyed B-86 Titan 20428 | -4/Armory | Local fabrication network quarantined 20430 | -4/Armory | Build established: Wizard-Mutant 20601 | -4/Armory | First assault squad dispatched 20625 | -4/Armory | Discovered new exit (range 4) 20628 | -4/Armory | Entered Lab 20628 | -4/Lab | Discovered exit to Research (range 9) 20877 | -4/Lab | Crushed by falling debris 20923 | -4/Lab | Detected for breach 20932 | -4/Lab | Gained access to the hidden lab's interior 20965 | -4/Lab | Confronted by A5 20983 | -4/Lab | Destroyed A5 20994 | -4/Lab | Found Exp. Hacking Suite 21032 | -4/Lab | Found Prototype Hackware 21032 | -4/Lab | Identified Quantum Router 21035 | -4/Lab | Found Prototype Device 21035 | -4/Lab | Identified AEGIS Remote Shield 21058 | -4/Lab | Found Alien Artifact 21058 | -4/Lab | Identified Core Reset Matrix 21058 | -4/Lab | Reached level 29 21058 | -4/Lab | Used Core Reset Matrix 21062 | -4/Lab | Sensed 3 artifacts in vicinity 21067 | -4/Lab | Found Integrated Reactor 21067 | -4/Lab | Installed Integrated Reactor, increased core energy generation (+2%) 21070 | -4/Lab | Discovered exit to Research (range 19) 21077 | -4/Lab | Found Core Expander 21093 | -4/Lab | Unable to decrypt terminal 21095 | -4/Lab | Entered Research 21248 | -3/Research | Identified exit to Testing 21248 | -3/Research | Identified exit to Research 21414 | -3/Research | Intercept squad dispatched 21420 | -3/Research | Spotted Tracker 21420 | -3/Research | Spotted Tracker 21429 | -3/Research | Destroyed Tracker 21441 | -3/Research | Destroyed Tracker 21441 | -3/Research | Spotted Combat Programmer 21442 | -3/Research | Spotted Combat Programmer 21455 | -3/Research | Destroyed Combat Programmer 21516 | -3/Research | Entered Testing 21539 | -3/Testing | Fabricated Adv. Core Analyzer (x1) 21564 | -3/Testing | Fabricated Adv. Reaction Control System (x1) 21599 | -3/Testing | Fabricated Exp. Target Analyzer (x1) 21632 | -3/Testing | Discovered exit to Research (range 14) 21712 | -3/Testing | Protovariant out of control (PY-JSJQ4767F8) 21712 | -3/Testing | Unleashed a protovariant (PY-JSJQ4767F8) 21719 | -3/Testing | Reached level 30 21719 | -3/Testing | Intercept squad dispatched 21724 | -3/Testing | Spotted Tracker 21724 | -3/Testing | Spotted Tracker 21725 | -3/Testing | Destroyed Tracker 21732 | -3/Testing | Destroyed Tracker 21740 | -3/Testing | Found Prototype Device 21740 | -3/Testing | Identified Exp. Phase Shifter 21759 | -3/Testing | Spotted Combat Programmer 21759 | -3/Testing | Spotted Combat Programmer 21770 | -3/Testing | Core integrity fell below 50% 21775 | -3/Testing | Destroyed Combat Programmer 21783 | -3/Testing | Destroyed Combat Programmer 21833 | -3/Testing | Found Exp. Melee Analysis Suite 21859 | -3/Testing | Found Prototype Device 21859 | -3/Testing | Identified Exp. Hardlight Generator 21929 | -3/Testing | Spotted Striker 21930 | -3/Testing | Spotted Striker 21947 | -3/Testing | Spotted Alpha 7 21952 | -3/Testing | Destroyed Striker 21956 | -3/Testing | Destroyed Striker 21984 | -3/Testing | Destroyed Alpha 7 21991 | -3/Testing | Found Prototype Processor 21991 | -3/Testing | Identified Exp. Targeting Computer 21994 | -3/Testing | Intercept squad dispatched 21994 | -3/Testing | Found Unknown Device 21994 | -3/Testing | Identified Antimissile System 21996 | -3/Testing | Found Prototype Device 21996 | -3/Testing | Identified Exp. ECM Suite 22016 | -3/Testing | Spotted Tracker 22017 | -3/Testing | Spotted Tracker 22017 | -3/Testing | Spotted Tracker 22025 | -3/Testing | Destroyed Tracker 22027 | -3/Testing | Emitted hypermatrix ping 22029 | -3/Testing | Core integrity fell below 20% 22029 | -3/Testing | Destroyed Tracker 22032 | -3/Testing | Assembled emerged from beneath the floor 22032 | -3/Testing | Allies destroyed Tracker 22049 | -3/Testing | Spotted Combat Programmer 22049 | -3/Testing | Spotted Combat Programmer 22049 | -3/Testing | Spotted Combat Programmer 22060 | -3/Testing | System corruption reached 10% 22063 | -3/Testing | Destroyed Combat Programmer 22072 | -3/Testing | Destroyed by Combat Programmer with EMDS Last Messages --------------- 22053_ EMDS Slug penetrates as-73181. 22053_ Machine disabled. 22054_ as-49810 system terminally corrupted. 22054_ EMDS Slug penetrates as-73181. 22054_ as-73181 destroyed. 22056_ Penetrated by EMDS Slug. 22060_ System corrupted: Enh. Force Lance targeting data glitched. 22060_ Plasma Lance follow-up attack on Combat Programmer. 22060_ Destroyed Adv. Dynamic Insulation System. 22060_ Force Lance follow-up attack on Combat Programmer. 22062_ Penetrated by EMDS Slug. 22063_ Plasma Lance follow-up attack on Combat Programmer. 22063_ Combat Programmer fries systems beyond repair. 22063_ Combat Programmer destroyed. 22065_ System corrupted: Exp. Phase Shifter rejected. 22065_ Penetrated by EMDS Slug. 22067_ Plasma Lance follow-up attack on Combat Programmer. 22068_ Penetrated by EMDS Slug. 22070_ EMDS Slug penetrates Wall. 22072_ Penetrated by EMDS Slug. Map ----- +----------------------------------------------------+ | | | | | | | | | | | | | | | ??????########################################### | | ??##?############################################ | | ??#?############################################# | | #????#########################################?## | | ???############################################## | | ?#?############################################## | | ???############################################## | | #??############################################## | | ??############################################### | | ?#####################"" """##################### | | #??###################"" """################## | | ####?#################" ! "################## | | ?#########""""""######" % "################## "" | | ##########"" """###### /= "################## "" | | ?#########"" ""###### = ################## "" | | ?#########"" ## #####+;!###################### | | ?#########"" + *!p%!################### | | ?#########" + !p!!# ########## | | ?#########" ## #"###@#![! """ ########## | | ?#########""" ###### #!!#! """ ########## | | ?##?########## ###### ##%[#%* """ # ^ # | | ?#################### ####!!+!! +^ ^ # | | ??################## #####%%#!%[""" # ^ # | | ?################## ######%!# =!""" # "" # | | #??####################### %+== "" =# ^ """ # | | ??######################## !#[=* + T" # c | | ??##?##################### %#####"#### ^ """ # | | ??#?###################### ##### #### "" # | | ???####################### #####!#### #a | | ?#?#?##################### #####"#######+##### | | #???#################### # =!%=![%| % | | ?????##################### /=%**]%=* | | ??#?############ """ # """"%*!##### ######## | | ??????#?######## """ "R" # """"" #####u######## | | ????#???######## """ " " # """"" #####k######## | | ?????????####### """ + # """u""" #### | | ??????????###### """ # """" # """ """ #### | | ????????#??##### """ # """ # """?""" #### | | ???????????##### # """"" # k # | | ?????????????### # " #### | | ??????????????##?######### """" # #### | | ??????????????##### # """" k? u #### | | ???????????????#??? ? + ?""" ? #### | +----------------------------------------------------+ Best States ------------- Heat Dissipation 63 Energy Generation 75 Energy Capacity 710 Matter Stores 300 Matter Capacity 300 Sight Range 16 Terrain Scan Range 24 Terrain Scan Density 410 Additional Mass Support 6 EM Shielding 4 Reclamation Efficiency 20 Melee Speed Boost 30 Phase Shifting 20 Evasion (%) 96 Targeting Accuracy 32 Melee Accuracy 24 Target Analysis 12 Core Analysis 10 Armor Integrity Analysis 66 Recoil Reduction 2 Offensive Hacking 54 Defensive Hacking 56 Item Schematics ----------------- Imp. Stasis Canceller | -3/Research | Hacked Exp. Melee Analysis Suite | -3/Research | Hacked Adv. Core Analyzer | -3/Research | Hacked Enh. Force Lance | -3/Research | Hacked Exp. Cesium-ion Thruster | -3/Research | Hacked Cld. Field Propulsion Drive | -3/Research | Hacked Cld. Fission Core | -3/Research | Hacked Exp. Target Analyzer | -3/Research | Hacked Adv. Reaction Control System | -3/Research | Hacked Plasma Lance | -3/Research | Hacked Robot Schematics ------------------ None Fabricated ------------ Imp. Melee Analysis Suite | x1 | -7/Factory Imp. Melee Analysis Suite | x1 | -7/Factory Falx | x2 | -7/Factory | Preloaded Imp. System Shield | x1 | -7/Factory Imp. System Shield | x1 | -7/Factory Imp. Hacking Suite | x1 | -7/Factory Spear | x2 | -7/Factory Imp. Maneuvering Thrusters | x1 | -7/Factory Imp. Armor Integrity Analyzer | x1 | -7/Factory Imp. Target Analyzer | x1 | -7/Factory Imp. Core Analyzer | x1 | -6/Factory Lance | x2 | -6/Factory Imp. Phase Shifter | x1 | -6/Factory Lance | x2 | -6/Factory Actuator Array | x1 | -6/Factory Imp. Actuator Array | x1 | -6/Factory Reaction Control System | x1 | -5/Factory Adv. Actuator Array | x1 | -5/Factory S-27 Virus | x4 | -5/Factory Adv. Target Analyzer | x1 | -5/Factory I-36 Angel | x1 | -5/Factory Exp. System Shield | x1 | -5/Factory Exp. System Shield | x1 | -5/Factory Adv. Force Field | x2 | -5/Factory Adv. Target Analyzer | x1 | -5/Factory Kinetic Spear | x1 | -5/Factory Enh. Force Lance | x1 | -4/Factory Q-thruster | x2 | -4/Armory Exp. System Shield | x1 | -4/Armory Exp. Hacking Suite | x1 | -4/Armory Exp. Hacking Suite | x1 | -4/Armory Adv. Core Analyzer | x1 | -3/Testing Adv. Reaction Control System | x1 | -3/Testing Exp. Target Analyzer | x1 | -3/Testing Alien Tech Used ----------------- Core Expander Core Reset Matrix Integrated Reactor Achievements -------------- Anyone Home? Challenges ------------ None RPGLIKE | -11 -10 -10 -9 -9 -8 -7 -7 -7 -7 -7 -7 -6 -6 -6 -6 -6 -5 -5 -5 -5 -5 -5 -5 -5 -4 -4 -4 -4 -4 -3 -3 --------- Run | Scr Mat Min Mat Sto Mat Fac Was Fac Low Low Zio Pro Fac Low Low Dat Pro Fac Was Fac Ext Cet Arc Hub Fac Was Fac Arm Lab Res Tes Levels Raised 29 | . 1 1 5 2 3 3 . 1 1 . . 1 1 1 . . 1 2 . 1 . . 1 . 1 . 1 . 1 . 1 XP Earned 46855 | 3000 1995 1991 6958 4036 3915 4423 67 2089 544 622 82 1174 2039 404 305 105 1275 3299 32 808 720 526 141 917 1136 32 1389 442 702 822 865 XP Spent 44440 | . 2900 500 4370 3400 3700 9550 . 1400 . . . 4120 1500 300 . . . 3500 . 1900 . . . . . 4350 1900 . 1050 . . Upgrades 50 | . 8 1 9 4 2 5 . 4 . . . 6 2 1 . . . 1 . 2 . . . . . 2 2 . 1 . . Power Slot 1 | . . . 1 . . . . . . . . . . . . . . . . . . . . . . . . . . . . Propulsion Slot 1 | . . 1 . . . . . . . . . . . . . . . . . . . . . . . . . . . . . Utility Slot 12 | . . . 3 1 2 3 . . . . . 1 . . . . . 1 . . . . . . . 1 . . . . . Weapon Slot 3 | . 1 . 1 1 . . . . . . . . . . . . . . . . . . . . . . . . . . . Heat Dissipation 2 | . . . 2 . . . . . . . . . . . . . . . . . . . . . . . . . . . . Energy Generation 4 | . . . . . . . . . . . . . . 1 . . . . . . . . . . . 1 1 . 1 . . Mass Support 11 | . 2 . 1 1 . . . 1 . . . 1 2 . . . . . . 2 . . . . . . 1 . . . . Inventory Capacity 4 | . . . 1 1 . 2 . . . . . . . . . . . . . . . . . . . . . . . . . Terrain Scan Density 4 | . . . . . . . . . . . . 4 . . . . . . . . . . . . . . . . . . . Melee Accuracy 3 | . . . . . . . . 3 . . . . . . . . . . . . . . . . . . . . . . . Hack Attack % 2 | . 2 . . . . . . . . . . . . . . . . . . . . . . . . . . . . . . Hack Defense % 3 | . 3 . . . . . . . . . . . . . . . . . . . . . . . . . . . . . . Protomatter Created 13262 | . 127 100 591 854 735 1131 . 693 354 294 . 149 722 359 328 . 400 1663 . 1078 592 68 . 320 353 290 683 541 74 299 464 Integrity Restored 15202 | . 255 317 1079 788 846 1951 . 1041 488 676 . 297 286 388 268 . 237 1721 . 419 272 234 119 422 261 53 987 201 569 259 768 Core 12197 | . 249 317 971 623 665 1561 . 820 392 568 . 191 233 316 219 . 199 1374 . 344 170 162 92 302 203 8 774 155 417 247 625 Parts 3005 | . 6 . 108 165 181 390 . 221 96 108 . 106 53 72 49 . 38 347 . 75 102 72 27 120 58 45 213 46 152 12 143 Protomatter Decayed 10750 | . 26 5 144 686 443 221 . 455 243 158 . 142 906 224 166 . 335 1358 . 1180 609 212 42 506 262 261 1069 439 66 212 380 Game ------ Seed SurveybotHeatMachine Manual? 0 Play Time 06:25:50 Cumulative 149.3 hours Start 2020.01.17 @ 14:12:27 End 2020.01.18 @ 13:51:58 Sessions 11 Manual Loads 0 Difficulty Rogue Special Mode Winter2019/RPGLIKE Game No. 141 Rogue 141 Adventurer 0 Explorer 0 Win Type - Total 12 Types 11/0/0/1/0/0/0 Lore% 72 Gallery% 72 Achievement% 66 Wizard Run 0 Options --------- ASCII 0 Keyboard 0 Movement Numpad Keybinds 0 Fullscreen 2 Font 18/SmallcapsGlow Map View 76x50 Tactical HUD 1 Map Filters NONE Filters NONE Steam X RUN: 3ba36e45-54d6-4824-9325-b12d73bbe099